Workbook

Sheet Stavba
C2: Položkový rozpočet stavby | H2: Datum:
C5: Stavba : | D5: 3381 | E5: Turnov-Opravy místních komunikací a chodníků 2024
C7: Objednatel : | D7: Město TURNOV | H7: IČO : | I7: 00276227
D8: Antonína Dvořáka 335 | H8: DIČ : | I8: CZ00276227
C9: 51122 | D9: Turnov
C11: Zhotovitel : | D11: . | H11: IČO :
H12: DIČ :
C14: Za zhotovitele : | H14: Za objednatele :
C16: _______________ | H16: _______________
J18: Rozpočtové náklady
B19: Základ pro DPH | D19: 12 | E19: % | I19: =ROUND(G35,0) -> 0
B20: DPH | D20: =SazbaDPH1 -> 12 | E20: % | I20: =ROUND(I19*D20/100,0) -> 0
B21: Základ pro DPH | D21: 21 | E21: % | I21: =ROUND(H35,0) -> 0
B22: DPH | D22: =SazbaDPH2 -> 21 | E22: % | I22: =ROUND(I21*D21/100,0) -> 0
B23: Cena celkem za stavbu | I23: =SUM(I19:I22) -> 0
B26: Rekapitulace stavebních objektů a provozních souborů
B28: Číslo a název objektu / provozního souboru | F28: Cena celkem | G28: =CONCATENATE("Základ DPH ",SazbaDPH1," %") -> Základ DPH 12 % | H28: =CONCATENATE("Základ DPH ",SazbaDPH2," %") -> Základ DPH 21 % | I28: DPH celkem | J28: %
B29: 04 | C29: Oprava komunikace Kobylka k čp.41 | F29: =G29+H29+I29 -> 0 | G29: 0 | H29: =SUM(H40:H40) -> 0 | I29: =(G29*SazbaDPH1)/100+(H29*SazbaDPH2)/100 -> 0 | J29: =IF(CelkemObjekty=0,"",F29/CelkemObjekty*100) -> 
B30: 05 | C30: Oprava části komunikace Kotlerovo nábřeží | F30: =G30+H30+I30 -> 0 | G30: 0 | H30: =SUM(H41) -> 0 | I30: 0
B31: 10 | C31: Oprava části chodníku v ul. Přepeřská | F31: 0 | G31: 0 | H31: =SUM(H42) -> 0 | I31: 0
B32: 11 | C32: Oprava části chodníku u provozovny UNIVER | F32: 0 | G32: 0 | H32: =SUM(H43) -> 0 | I32: 0
B33: 12 | C33: Vesecko - Asfaltové plochy na ppč. 698/33 | F33: 0 | G33: 0 | H33: =SUM(H44) -> 0 | I33: 0
B34: 13 | C34: Oprava MK Družstevní ul. | F34: 0 | G34: 0 | H34: =SUM(H45) -> 0 | I34: 0
B35: Celkem za stavbu | F35: =SUM(F29:F34) -> 0 | G35: =SUM(G29:G34) -> 0 | H35: =SUM(H29:H34) -> 0 | I35: =SUM(I29:I34) -> 0 | J35: =IF(CelkemObjekty=0,"",F35/CelkemObjekty*100) -> 
B37: Rekapitulace stavebních rozpočtů
B39: Číslo objektu | C39: Číslo a název rozpočtu | F39: Cena celkem | G39: =CONCATENATE("Základ DPH ",SazbaDPH1," %") -> Základ DPH 12 % | H39: =CONCATENATE("Základ DPH ",SazbaDPH2," %") -> Základ DPH 21 % | I39: DPH celkem | J39: %
B40: 04 | C40: 3381/04.1 Oprava komunikace Kobylka k nádrži pod čp.41 | F40: =G40+H40+I40 -> 0 | G40: 0 | H40: =SUM('04 338104.1 KL'!C23) -> 0 | I40: =(G40*SazbaDPH1)/100+(H40*SazbaDPH2)/100 -> 0 | J40: =IF(CelkemObjekty=0,"",F40/CelkemObjekty*100) -> 
B41: 05 | C41: 3381/05 Oprava části komunikace Kotlerovo nábřeží | F41: =G41+H41+I41 -> 0 | G41: 0 | H41: =SUM('05 338105 KL'!C23) -> 0 | I41: 0
B42: 10 | C42: 3381/10 Oprava části chodníku v ul. Přepeřská | F42: 0 | G42: 0 | H42: =SUM('10 338110 KL'!C23) -> 0 | I42: 0
B43: 11 | C43: 3381/11 Oprava části chodníku u provozovny UNIVER | F43: 0 | G43: 0 | H43: =SUM('11 338111 KL'!C23) -> 0 | I43: 0
B44: 12 | C44: 3381/12 Vesecko - Asfaltové plochy | F44: 0 | G44: 0 | H44: =SUM('12 338112 KL'!C23) -> 0 | I44: 0
B45: 13 | C45: 3381/13 Oprava MK Družstevní ul. | F45: 0 | G45: 0 | H45: =SUM('13 338113 KL'!C23) -> 0 | I45: 0
B46: Celkem za stavbu | F46: =SUM(F40:F45) -> 0 | G46: =SUM(G40:G45) -> 0 | H46: =SUM(H40:H45) -> 0 | I46: =SUM(I40:I45) -> 0 | J46: =IF(CelkemObjekty=0,"",F46/CelkemObjekty*100) -> 

Sheet 04 338104.1 KL
A1: POLOŽKOVÝ ROZPOČET
A2: Rozpočet | C2: 3381/04.1 | D2: Oprava komunikace Kobylka k nádrži pod čp.41 | F2: JKSO | G2: 822.27
A4: Objekt | F4: SKP
A5: 04 | C5: Oprava komunikace Kobylka k čp.41 | F5: Měrná jednotka | G5: m2
A6: Stavba | F6: Počet jednotek | G6: 0
A7: 3381 | C7: Turnov-Opravy místních komunikací a chodníků 2024 | F7: Náklady na m.j. | G7: =IF(G6=0,,ROUND((F30+F32)/G6,1)) -> 0
A8: Projektant | F8: Typ rozpočtu
A9: Zpracovatel projektu
A10: Objednatel | C10: Město TURNOV
A11: Dodavatel | C11: . | F11: Zakázkové číslo
A12: Rozpočtoval | F12: Počet listů
A13: ROZPOČTOVÉ NÁKLADY
A14: Základní rozpočtové náklady | D14: Ostatní rozpočtové náklady
B15: HSV celkem | C15: ='04 338104.1 Rek'!E13 -> 0 | D15: ='04 338104.1 Rek'!A18 -> Zařízení staveniště | G15: ='04 338104.1 Rek'!I18 -> 0
A16: Z | B16: PSV celkem | C16: ='04 338104.1 Rek'!F13 -> 0 | D16: ='04 338104.1 Rek'!A19 -> Kompletační činnost (IČD) | G16: ='04 338104.1 Rek'!I19 -> 0
A17: R | B17: M práce celkem | C17: ='04 338104.1 Rek'!H13 -> 0 | D17: ='04 338104.1 Rek'!A20 -> Vytýčení stavby a podz. inženýrských sítí | G17: ='04 338104.1 Rek'!I20 -> 0
A18: N | B18: M dodávky celkem | C18: ='04 338104.1 Rek'!G13 -> 0 | D18: ='04 338104.1 Rek'!A21 -> Dokumentace skutečného provedení | G18: ='04 338104.1 Rek'!I21 -> 0
A19: ZRN celkem | C19: =SUM(C15:C18) -> 0 | D19: ='04 338104.1 Rek'!A22 -> Geodetické zaměření stavby | G19: ='04 338104.1 Rek'!I22 -> 0
D20: ='04 338104.1 Rek'!A23 -> DIO | G20: ='04 338104.1 Rek'!I23 -> 0
A21: HZS | C21: ='04 338104.1 Rek'!I13 -> 0
A22: ZRN+HZS | C22: =C19+C21 -> 0
A23: ZRN+ost.náklady+HZS | C23: =C22+G23 -> 0 | D23: Ostatní náklady celkem | G23: ='04 338104.1 Rek'!H24 -> 0
A24: Vypracoval | D24: Za zhotovitele | F24: Za objednatele
A25: Jméno : | D25: Jméno : | F25: Jméno :
A26: Datum : | D26: Datum : | F26: Datum :
A28: Podpis : | D28: Podpis: | F28: Podpis:
A30: Základ pro DPH | C30: 21 | D30: % | F30: =C23-F32 -> 0
A31: DPH | C31: =C30 -> 21 | D31: % | F31: =ROUND(PRODUCT(F30,C31/100),0) -> 0
A32: Základ pro DPH | C32: 0 | D32: % | F32: 0
A33: DPH | C33: =C32 -> 0 | D33: % | F33: =ROUND(PRODUCT(F32,C33/100),0) -> 0
A34: CENA ZA OBJEKT CELKEM | F34: =ROUND(SUM(F30:F33),0) -> 0
A36: Poznámka :

Sheet 04 338104.1 Rek
A1: Stavba : | C1: 3381 Turnov-Opravy místních komunikací a chodníků 2024 | G1: Rozpočet : | H1: 3381/04.1
A2: Objekt : | C2: 04 Oprava komunikace Kobylka k čp.41 | G2: Oprava komunikace Kobylka k nádrži pod čp.41
A4: REKAPITULACE STAVEBNÍCH DÍLŮ
B6: Stavební díl | E6: HSV | F6: PSV | G6: Dodávka | H6: Montáž | I6: HZS
A7: ='04 338104.1 Pol'!B7 -> 1 | B7: ='04 338104.1 Pol'!C7 -> Zemní práce | E7: ='04 338104.1 Pol'!BA13 -> 0 | F7: ='04 338104.1 Pol'!BB13 -> 0 | G7: ='04 338104.1 Pol'!BC13 -> 0 | H7: ='04 338104.1 Pol'!BD13 -> 0 | I7: ='04 338104.1 Pol'!BE13 -> 0
A8: ='04 338104.1 Pol'!B14 -> 5 | B8: ='04 338104.1 Pol'!C14 -> Komunikace | E8: ='04 338104.1 Pol'!BA26 -> 0 | F8: ='04 338104.1 Pol'!BB26 -> 0 | G8: ='04 338104.1 Pol'!BC26 -> 0 | H8: ='04 338104.1 Pol'!BD26 -> 0 | I8: ='04 338104.1 Pol'!BE26 -> 0
A9: ='04 338104.1 Pol'!B27 -> 8 | B9: ='04 338104.1 Pol'!C27 -> Trubní vedení | E9: ='04 338104.1 Pol'!BA29 -> 0 | F9: ='04 338104.1 Pol'!BB29 -> 0 | G9: ='04 338104.1 Pol'!BC29 -> 0 | H9: ='04 338104.1 Pol'!BD29 -> 0 | I9: ='04 338104.1 Pol'!BE29 -> 0
A10: ='04 338104.1 Pol'!B30 -> 91 | B10: ='04 338104.1 Pol'!C30 -> Doplňující práce na komunikaci | E10: ='04 338104.1 Pol'!BA33 -> 0 | F10: ='04 338104.1 Pol'!BB33 -> 0 | G10: ='04 338104.1 Pol'!BC33 -> 0 | H10: ='04 338104.1 Pol'!BD33 -> 0 | I10: ='04 338104.1 Pol'!BE33 -> 0
A11: ='04 338104.1 Pol'!B34 -> 93 | B11: ='04 338104.1 Pol'!C34 -> Dokončovací práce inženýrských staveb | E11: ='04 338104.1 Pol'!BA42 -> 0 | F11: ='04 338104.1 Pol'!BB42 -> 0 | G11: ='04 338104.1 Pol'!BC42 -> 0 | H11: ='04 338104.1 Pol'!BD42 -> 0 | I11: ='04 338104.1 Pol'!BE42 -> 0
A12: ='04 338104.1 Pol'!B43 -> 99 | B12: ='04 338104.1 Pol'!C43 -> Staveništní přesun hmot | E12: ='04 338104.1 Pol'!BA45 -> 0 | F12: ='04 338104.1 Pol'!BB45 -> 0 | G12: ='04 338104.1 Pol'!BC45 -> 0 | H12: ='04 338104.1 Pol'!BD45 -> 0 | I12: ='04 338104.1 Pol'!BE45 -> 0
B13: CELKEM OBJEKT | E13: =SUM(E7:E12) -> 0 | F13: =SUM(F7:F12) -> 0 | G13: =SUM(G7:G12) -> 0 | H13: =SUM(H7:H12) -> 0 | I13: =SUM(I7:I12) -> 0
A15: VEDLEJŠÍ ROZPOČTOVÉ NÁKLADY
A17: Název VRN | E17: Kč | I17: Kč
A18: Zařízení staveniště | E18: 0 | I18: =E18+F18*G18/100 -> 0 | BA18: 2
A19: Kompletační činnost (IČD) | E19: 0 | I19: 0 | BA19: 2
A20: Vytýčení stavby a podz. inženýrských sítí | E20: 0 | I20: 0 | BA20: 0
A21: Dokumentace skutečného provedení | E21: 0 | I21: 0 | BA21: 0
A22: Geodetické zaměření stavby | E22: 0 | I22: 0 | BA22: 0
A23: DIO | E23: 0 | I23: 0 | BA23: 0
B24: CELKEM VRN | H24: =SUM(I18:I23) -> 0

Sheet 04 338104.1 Pol
A1: Položkový rozpočet
A3: Stavba : | C3: 3381 Turnov-Opravy místních komunikací a chodníků 2024 | E3: Rozpočet: | F3: ='04 338104.1 Rek'!H1 -> 3381/04.1
A4: Objekt : | C4: 04 Oprava komunikace Kobylka k čp.41 | E4: ='04 338104.1 Rek'!G2 -> Oprava komunikace Kobylka k nádrži pod čp.41
A6: P.č. | B6: Číslo položky | C6: Název položky | D6: MJ | E6: množství | F6: cena / MJ | G6: celkem (Kč) | H6: Jednotková hmotnost | I6: Celková hmotnost | J6: Jednotková dem.hmot. | K6: Celková dem.hmot.
A7: Díl: | B7: 1 | C7: Zemní práce | O7: 1
A8: 1 | B8: 113108310R00 | C8: Odstranění asfaltové vrstvy pl. do 50 m2, tl.10 cm | D8: m2 | E8: 2 | G8: =E8*F8 -> 0 | H8: 0 | I8: =E8*H8 -> 0 | J8: -0.22 | K8: =E8*J8 -> -0.44 | O8: 2 | AA8: 1 | AB8: 1 | AC8: 1 | AZ8: 1 | BA8: =IF(AZ8=1,G8,0) -> 0 | BB8: =IF(AZ8=2,G8,0) -> 0 | BC8: =IF(AZ8=3,G8,0) -> 0 | BD8: =IF(AZ8=4,G8,0) -> 0 | BE8: =IF(AZ8=5,G8,0) -> 0 | CA8: 1 | CB8: 1
C9: Napoje na komunikaci KSS LK:8,00*0,25 | E9: 2 | M9: Napoje na komunikaci KSS LK:8,00*0,25
A10: 2 | B10: 979082113RSZ | C10: Vodorovná doprava suti po suchu na skládku zhotovitele | D10: t | E10: 0.44 | G10: =E10*F10 -> 0 | H10: 0 | I10: =E10*H10 -> 0 | J10: 0 | K10: =E10*J10 -> 0 | O10: 2 | AA10: 1 | AB10: 1 | AC10: 1 | AZ10: 1 | BA10: =IF(AZ10=1,G10,0) -> 0 | BB10: =IF(AZ10=2,G10,0) -> 0 | BC10: =IF(AZ10=3,G10,0) -> 0 | BD10: =IF(AZ10=4,G10,0) -> 0 | BE10: =IF(AZ10=5,G10,0) -> 0 | CA10: 1 | CB10: 1
A11: 3 | B11: 979999995R00 | C11: Poplatek za reciklaci asfaltu, kusovost do 1600cm2 skupina 170302 | D11: t | E11: 0.44 | G11: =E11*F11 -> 0 | H11: 0 | I11: =E11*H11 -> 0 | J11: 0 | K11: =E11*J11 -> 0 | O11: 2 | AA11: 1 | AB11: 1 | AC11: 1 | AZ11: 1 | BA11: =IF(AZ11=1,G11,0) -> 0 | BB11: =IF(AZ11=2,G11,0) -> 0 | BC11: =IF(AZ11=3,G11,0) -> 0 | BD11: =IF(AZ11=4,G11,0) -> 0 | BE11: =IF(AZ11=5,G11,0) -> 0 | CA11: 1 | CB11: 1
C12: Položka je určena pro suť o velikosti kusu do 30x30 cm (technologický materiál určený k recyklaci). | L12: Položka je určena pro suť o velikosti kusu do 30x30 cm (technologický materiál určený k recyklaci). | O12: 3
B13: Celkem za | C13: 1 Zemní práce | G13: =SUM(G7:G12) -> 0 | I13: =SUM(I7:I12) -> 0 | K13: =SUM(K7:K12) -> -0.44 | O13: 4 | BA13: =SUM(BA7:BA12) -> 0 | BB13: =SUM(BB7:BB12) -> 0 | BC13: =SUM(BC7:BC12) -> 0 | BD13: =SUM(BD7:BD12) -> 0 | BE13: =SUM(BE7:BE12) -> 0
A14: Díl: | B14: 5 | C14: Komunikace | O14: 1
A15: 4 | B15: 569731111R00 | C15: Zpevnění krajnic kamenivem drceným tl. 10 cm | D15: m2 | E15: 43.5 | G15: =E15*F15 -> 0 | H15: 0.19695 | I15: =E15*H15 -> 8.567325 | J15: 0 | K15: =E15*J15 -> 0 | O15: 2 | AA15: 1 | AB15: 1 | AC15: 1 | AZ15: 1 | BA15: =IF(AZ15=1,G15,0) -> 0 | BB15: =IF(AZ15=2,G15,0) -> 0 | BC15: =IF(AZ15=3,G15,0) -> 0 | BD15: =IF(AZ15=4,G15,0) -> 0 | BE15: =IF(AZ15=5,G15,0) -> 0 | CA15: 1 | CB15: 1
C16: Plocha komunikace:87,00*2*0,25 | E16: 43.5 | M16: Plocha komunikace:87,00*2*0,25
A17: 5 | B17: 572713112R00 | C17: Vyrovnání povrchu krytů kamen. obaleným asfaltem | D17: t | E17: 105.875 | G17: =E17*F17 -> 0 | H17: 1 | I17: =E17*H17 -> 105.875 | J17: 0 | K17: =E17*J17 -> 0 | O17: 2 | AA17: 1 | AB17: 1 | AC17: 1 | AZ17: 1 | BA17: =IF(AZ17=1,G17,0) -> 0 | BB17: =IF(AZ17=2,G17,0) -> 0 | BC17: =IF(AZ17=3,G17,0) -> 0 | BD17: =IF(AZ17=4,G17,0) -> 0 | BE17: =IF(AZ17=5,G17,0) -> 0 | CA17: 1 | CB17: 1
C18: Plocha komunikace:275,00*0,07*2*2,5*1,1 | E18: 105.875 | M18: Plocha komunikace:275,00*0,07*2*2,5*1,1
A19: 6 | B19: 573111121R00 | C19: Postřik infiltr., množství zbytkov. poj. 0,60kg/m2 | D19: m2 | E19: 165 | G19: =E19*F19 -> 0 | H19: 0.00561 | I19: =E19*H19 -> 0.92565 | J19: 0 | K19: =E19*J19 -> 0 | O19: 2 | AA19: 1 | AB19: 1 | AC19: 1 | AZ19: 1 | BA19: =IF(AZ19=1,G19,0) -> 0 | BB19: =IF(AZ19=2,G19,0) -> 0 | BC19: =IF(AZ19=3,G19,0) -> 0 | BD19: =IF(AZ19=4,G19,0) -> 0 | BE19: =IF(AZ19=5,G19,0) -> 0 | CA19: 1 | CB19: 1
C20: Plocha komunikace - na 60% plochy:275,00*0,6 | E20: 165 | M20: Plocha komunikace - na 60% plochy:275,00*0,6
A21: 7 | B21: 573231125R00 | C21: Postřik spojovací z KAE, množ. zbyt.asf. 0,5 kg/m2 | D21: m2 | E21: 275 | G21: =E21*F21 -> 0 | H21: 0.00071 | I21: =E21*H21 -> 0.19525 | J21: 0 | K21: =E21*J21 -> 0 | O21: 2 | AA21: 1 | AB21: 1 | AC21: 1 | AZ21: 1 | BA21: =IF(AZ21=1,G21,0) -> 0 | BB21: =IF(AZ21=2,G21,0) -> 0 | BC21: =IF(AZ21=3,G21,0) -> 0 | BD21: =IF(AZ21=4,G21,0) -> 0 | BE21: =IF(AZ21=5,G21,0) -> 0 | CA21: 1 | CB21: 1
C22: Plocha komunikace:275,00 | E22: 275 | M22: Plocha komunikace:275,00
A23: 8 | B23: 577141112RT2 | C23: Beton asfalt. ACO 11+,nebo ACO 16+,do 3 m, tl.5 cm plochy 201-1000 m2 | D23: m2 | E23: 275 | G23: =E23*F23 -> 0 | H23: 0.12966 | I23: =E23*H23 -> 35.6565 | J23: 0 | K23: =E23*J23 -> 0 | O23: 2 | AA23: 1 | AB23: 1 | AC23: 1 | AZ23: 1 | BA23: =IF(AZ23=1,G23,0) -> 0 | BB23: =IF(AZ23=2,G23,0) -> 0 | BC23: =IF(AZ23=3,G23,0) -> 0 | BD23: =IF(AZ23=4,G23,0) -> 0 | BE23: =IF(AZ23=5,G23,0) -> 0 | CA23: 1 | CB23: 1
C24: Včetně zalití pracovní spáry | L24: Včetně zalití pracovní spáry | O24: 3
C25: Plocha komunikace:275,00 | E25: 275 | M25: Plocha komunikace:275,00
B26: Celkem za | C26: 5 Komunikace | G26: =SUM(G14:G25) -> 0 | I26: =SUM(I14:I25) -> 151.219725 | K26: =SUM(K14:K25) -> 0 | O26: 4 | BA26: =SUM(BA14:BA25) -> 0 | BB26: =SUM(BB14:BB25) -> 0 | BC26: =SUM(BC14:BC25) -> 0 | BD26: =SUM(BD14:BD25) -> 0 | BE26: =SUM(BE14:BE25) -> 0
A27: Díl: | B27: 8 | C27: Trubní vedení | O27: 1
A28: 9 | B28: 899331111R00 | C28: Výšková úprava vstupu do 20 cm, zvýšení poklopu | D28: kus | E28: 2 | G28: =E28*F28 -> 0 | H28: 0.43094 | I28: =E28*H28 -> 0.86188 | J28: 0 | K28: =E28*J28 -> 0 | O28: 2 | AA28: 1 | AB28: 1 | AC28: 1 | AZ28: 1 | BA28: =IF(AZ28=1,G28,0) -> 0 | BB28: =IF(AZ28=2,G28,0) -> 0 | BC28: =IF(AZ28=3,G28,0) -> 0 | BD28: =IF(AZ28=4,G28,0) -> 0 | BE28: =IF(AZ28=5,G28,0) -> 0 | CA28: 1 | CB28: 1
B29: Celkem za | C29: 8 Trubní vedení | G29: =SUM(G27:G28) -> 0 | I29: =SUM(I27:I28) -> 0.86188 | K29: =SUM(K27:K28) -> 0 | O29: 4 | BA29: =SUM(BA27:BA28) -> 0 | BB29: =SUM(BB27:BB28) -> 0 | BC29: =SUM(BC27:BC28) -> 0 | BD29: =SUM(BD27:BD28) -> 0 | BE29: =SUM(BE27:BE28) -> 0
A30: Díl: | B30: 91 | C30: Doplňující práce na komunikaci | O30: 1
A31: 10 | B31: 919735112R00 | C31: Řezání stávajícího živičného krytu tl. 5 - 10 cm | D31: m | E31: 8 | G31: =E31*F31 -> 0 | H31: 0 | I31: =E31*H31 -> 0 | J31: 0 | K31: =E31*J31 -> 0 | O31: 2 | AA31: 1 | AB31: 1 | AC31: 1 | AZ31: 1 | BA31: =IF(AZ31=1,G31,0) -> 0 | BB31: =IF(AZ31=2,G31,0) -> 0 | BC31: =IF(AZ31=3,G31,0) -> 0 | BD31: =IF(AZ31=4,G31,0) -> 0 | BE31: =IF(AZ31=5,G31,0) -> 0 | CA31: 1 | CB31: 1
C32: Napoje na komunikaci KSS LK:8,00 | E32: 8 | M32: Napoje na komunikaci KSS LK:8,00
B33: Celkem za | C33: 91 Doplňující práce na komunikaci | G33: =SUM(G30:G32) -> 0 | I33: =SUM(I30:I32) -> 0 | K33: =SUM(K30:K32) -> 0 | O33: 4 | BA33: =SUM(BA30:BA32) -> 0 | BB33: =SUM(BB30:BB32) -> 0 | BC33: =SUM(BC30:BC32) -> 0 | BD33: =SUM(BD30:BD32) -> 0 | BE33: =SUM(BE30:BE32) -> 0
A34: Díl: | B34: 93 | C34: Dokončovací práce inženýrských staveb | O34: 1
A35: 11 | B35: 938908411RRR | C35: Očištění povrchu krytu omytím | D35: m2 | E35: 275 | G35: =E35*F35 -> 0 | H35: 1e-05 | I35: =E35*H35 -> 0.00275 | J35: 0 | K35: =E35*J35 -> 0 | O35: 2 | AA35: 1 | AB35: 1 | AC35: 1 | AZ35: 1 | BA35: =IF(AZ35=1,G35,0) -> 0 | BB35: =IF(AZ35=2,G35,0) -> 0 | BC35: =IF(AZ35=3,G35,0) -> 0 | BD35: =IF(AZ35=4,G35,0) -> 0 | BE35: =IF(AZ35=5,G35,0) -> 0 | CA35: 1 | CB35: 1
C36: Plocha komunikace:275,00 | E36: 275 | M36: Plocha komunikace:275,00
A37: 12 | B37: 938909311R00 | C37: Odstranění nánosu z povrchu živičného nebo beton. | D37: m2 | E37: 275 | G37: =E37*F37 -> 0 | H37: 0 | I37: =E37*H37 -> 0 | J37: 0 | K37: =E37*J37 -> 0 | O37: 2 | AA37: 1 | AB37: 1 | AC37: 1 | AZ37: 1 | BA37: =IF(AZ37=1,G37,0) -> 0 | BB37: =IF(AZ37=2,G37,0) -> 0 | BC37: =IF(AZ37=3,G37,0) -> 0 | BD37: =IF(AZ37=4,G37,0) -> 0 | BE37: =IF(AZ37=5,G37,0) -> 0 | CA37: 1 | CB37: 1
C38: Plocha komunikace:275,00 | E38: 275 | M38: Plocha komunikace:275,00
A39: 13 | B39: 938909611RRX | C39: Odstranění nánosu na krajnicích tl. do 10 cm | D39: m2 | E39: 43.5 | G39: =E39*F39 -> 0 | H39: 0 | I39: =E39*H39 -> 0 | J39: -0.126 | K39: =E39*J39 -> -5.481 | O39: 2 | AA39: 1 | AB39: 1 | AC39: 1 | AZ39: 1 | BA39: =IF(AZ39=1,G39,0) -> 0 | BB39: =IF(AZ39=2,G39,0) -> 0 | BC39: =IF(AZ39=3,G39,0) -> 0 | BD39: =IF(AZ39=4,G39,0) -> 0 | BE39: =IF(AZ39=5,G39,0) -> 0 | CA39: 1 | CB39: 1
C40: Včetně odvozu na skládku zhotovitele a poplatku za skládku. | L40: Včetně odvozu na skládku zhotovitele a poplatku za skládku. | O40: 3
C41: Plocha komunikace:87,00*2*0,25 | E41: 43.5 | M41: Plocha komunikace:87,00*2*0,25
B42: Celkem za | C42: 93 Dokončovací práce inženýrských staveb | G42: =SUM(G34:G41) -> 0 | I42: =SUM(I34:I41) -> 0.00275 | K42: =SUM(K34:K41) -> -5.481 | O42: 4 | BA42: =SUM(BA34:BA41) -> 0 | BB42: =SUM(BB34:BB41) -> 0 | BC42: =SUM(BC34:BC41) -> 0 | BD42: =SUM(BD34:BD41) -> 0 | BE42: =SUM(BE34:BE41) -> 0
A43: Díl: | B43: 99 | C43: Staveništní přesun hmot | O43: 1
A44: 14 | B44: 998225111R00 | C44: Přesun hmot, pozemní komunikace, kryt živičný | D44: t | E44: 152.084355 | G44: =E44*F44 -> 0 | H44: 0 | I44: =E44*H44 -> 0 | K44: =E44*J44 -> 0 | O44: 2 | AA44: 7 | AB44: 1 | AC44: 2 | AZ44: 1 | BA44: =IF(AZ44=1,G44,0) -> 0 | BB44: =IF(AZ44=2,G44,0) -> 0 | BC44: =IF(AZ44=3,G44,0) -> 0 | BD44: =IF(AZ44=4,G44,0) -> 0 | BE44: =IF(AZ44=5,G44,0) -> 0 | CA44: 7 | CB44: 1
B45: Celkem za | C45: 99 Staveništní přesun hmot | G45: =SUM(G43:G44) -> 0 | I45: =SUM(I43:I44) -> 0 | K45: =SUM(K43:K44) -> 0 | O45: 4 | BA45: =SUM(BA43:BA44) -> 0 | BB45: =SUM(BB43:BB44) -> 0 | BC45: =SUM(BC43:BC44) -> 0 | BD45: =SUM(BD43:BD44) -> 0 | BE45: =SUM(BE43:BE44) -> 0

Sheet 05 338105 KL
A1: POLOŽKOVÝ ROZPOČET
A2: Rozpočet | C2: 3381/05 | D2: Oprava části komunikace Kotlerovo nábřeží | F2: JKSO | G2: 822.27
A4: Objekt | F4: SKP
A5: 05 | C5: Oprava části komunikace Kotlerovo nábřeží | F5: Měrná jednotka | G5: m2
A6: Stavba | F6: Počet jednotek | G6: 0
A7: 3381 | C7: Turnov-Opravy místních komunikací a chodníků 2024 | F7: Náklady na m.j. | G7: =IF(G6=0,,ROUND((F30+F32)/G6,1)) -> 0
A8: Projektant | F8: Typ rozpočtu
A9: Zpracovatel projektu
A10: Objednatel | C10: Město TURNOV
A11: Dodavatel | C11: . | F11: Zakázkové číslo
A12: Rozpočtoval | F12: Počet listů
A13: ROZPOČTOVÉ NÁKLADY
A14: Základní rozpočtové náklady | D14: Ostatní rozpočtové náklady
B15: HSV celkem | C15: ='05 338105 Rek'!E10 -> 0 | D15: ='05 338105 Rek'!A15 -> Zařízení staveniště | G15: ='05 338105 Rek'!I15 -> 0
A16: Z | B16: PSV celkem | C16: ='05 338105 Rek'!F10 -> 0 | D16: ='05 338105 Rek'!A16 -> Kompletační činnost (IČD) | G16: ='05 338105 Rek'!I16 -> 0
A17: R | B17: M práce celkem | C17: ='05 338105 Rek'!H10 -> 0 | D17: ='05 338105 Rek'!A17 -> Vytýčení stavby a podz. inženýrských sítí | G17: ='05 338105 Rek'!I17 -> 0
A18: N | B18: M dodávky celkem | C18: ='05 338105 Rek'!G10 -> 0 | D18: ='05 338105 Rek'!A18 -> Dokumentace skutečného provedení | G18: ='05 338105 Rek'!I18 -> 0
A19: ZRN celkem | C19: =SUM(C15:C18) -> 0 | D19: ='05 338105 Rek'!A19 -> Geodetické zaměření stavby | G19: ='05 338105 Rek'!I19 -> 0
D20: ='05 338105 Rek'!A20 -> DIO | G20: ='05 338105 Rek'!I20 -> 0
A21: HZS | C21: ='05 338105 Rek'!I10 -> 0
A22: ZRN+HZS | C22: =C19+C21 -> 0
A23: ZRN+ost.náklady+HZS | C23: =C22+G23 -> 0 | D23: Ostatní náklady celkem | G23: ='05 338105 Rek'!H21 -> 0
A24: Vypracoval | D24: Za zhotovitele | F24: Za objednatele
A25: Jméno : | D25: Jméno : | F25: Jméno :
A26: Datum : | D26: Datum : | F26: Datum :
A28: Podpis : | D28: Podpis: | F28: Podpis:
A30: Základ pro DPH | C30: 21 | D30: % | F30: =C23-F32 -> 0
A31: DPH | C31: =C30 -> 21 | D31: % | F31: =ROUND(PRODUCT(F30,C31/100),0) -> 0
A32: Základ pro DPH | C32: 0 | D32: % | F32: 0
A33: DPH | C33: =C32 -> 0 | D33: % | F33: =ROUND(PRODUCT(F32,C33/100),0) -> 0
A34: CENA ZA OBJEKT CELKEM | F34: =ROUND(SUM(F30:F33),0) -> 0
A36: Poznámka :

Sheet 05 338105 Rek
A1: Stavba : | C1: 3381 Turnov-Opravy místních komunikací a chodníků 2024 | G1: Rozpočet : | H1: 3381/05
A2: Objekt : | C2: 05 Oprava části komunikace Kotlerovo nábřeží | G2: Oprava části komunikace Kotlerovo nábřeží
A4: REKAPITULACE STAVEBNÍCH DÍLŮ
B6: Stavební díl | E6: HSV | F6: PSV | G6: Dodávka | H6: Montáž | I6: HZS
A7: ='05 338105 Pol'!B7 -> 5 | B7: ='05 338105 Pol'!C7 -> Komunikace | E7: ='05 338105 Pol'!BA21 -> 0 | F7: ='05 338105 Pol'!BB21 -> 0 | G7: ='05 338105 Pol'!BC21 -> 0 | H7: ='05 338105 Pol'!BD21 -> 0 | I7: ='05 338105 Pol'!BE21 -> 0
A8: ='05 338105 Pol'!B22 -> 93 | B8: ='05 338105 Pol'!C22 -> Dokončovací práce inženýrských staveb | E8: ='05 338105 Pol'!BA32 -> 0 | F8: ='05 338105 Pol'!BB32 -> 0 | G8: ='05 338105 Pol'!BC32 -> 0 | H8: ='05 338105 Pol'!BD32 -> 0 | I8: ='05 338105 Pol'!BE32 -> 0
A9: ='05 338105 Pol'!B33 -> 99 | B9: ='05 338105 Pol'!C33 -> Staveništní přesun hmot | E9: ='05 338105 Pol'!BA35 -> 0 | F9: ='05 338105 Pol'!BB35 -> 0 | G9: ='05 338105 Pol'!BC35 -> 0 | H9: ='05 338105 Pol'!BD35 -> 0 | I9: ='05 338105 Pol'!BE35 -> 0
B10: CELKEM OBJEKT | E10: =SUM(E7:E9) -> 0 | F10: =SUM(F7:F9) -> 0 | G10: =SUM(G7:G9) -> 0 | H10: =SUM(H7:H9) -> 0 | I10: =SUM(I7:I9) -> 0
A12: VEDLEJŠÍ ROZPOČTOVÉ NÁKLADY
A14: Název VRN | E14: Kč | I14: Kč
A15: Zařízení staveniště | E15: 0 | I15: =E15+F15*G15/100 -> 0 | BA15: 2
A16: Kompletační činnost (IČD) | E16: 0 | I16: 0 | BA16: 2
A17: Vytýčení stavby a podz. inženýrských sítí | E17: 0 | I17: 0 | BA17: 0
A18: Dokumentace skutečného provedení | E18: 0 | I18: 0 | BA18: 0
A19: Geodetické zaměření stavby | E19: 0 | I19: 0 | BA19: 0
A20: DIO | E20: 0 | I20: 0 | BA20: 0
B21: CELKEM VRN | H21: =SUM(I15:I20) -> 0

Sheet 05 338105 Pol
A1: Položkový rozpočet
A3: Stavba : | C3: 3381 Turnov-Opravy místních komunikací a chodníků 2024 | E3: Rozpočet: | F3: ='05 338105 Rek'!H1 -> 3381/05
A4: Objekt : | C4: 05 Oprava části komunikace Kotlerovo nábřeží | E4: ='05 338105 Rek'!G2 -> Oprava části komunikace Kotlerovo nábřeží
A6: P.č. | B6: Číslo položky | C6: Název položky | D6: MJ | E6: množství | F6: cena / MJ | G6: celkem (Kč) | H6: Jednotková hmotnost | I6: Celková hmotnost | J6: Jednotková dem.hmot. | K6: Celková dem.hmot.
A7: Díl: | B7: 5 | C7: Komunikace | O7: 1
A8: 1 | B8: 569731111R00 | C8: Zpevnění krajnic kamenivem drceným tl. 10 cm | D8: m2 | E8: 64.75 | G8: =E8*F8 -> 0 | H8: 0.19695 | I8: =E8*H8 -> 12.7525125 | J8: 0 | K8: =E8*J8 -> 0 | O8: 2 | AA8: 1 | AB8: 1 | AC8: 1 | AZ8: 1 | BA8: =IF(AZ8=1,G8,0) -> 0 | BB8: =IF(AZ8=2,G8,0) -> 0 | BC8: =IF(AZ8=3,G8,0) -> 0 | BD8: =IF(AZ8=4,G8,0) -> 0 | BE8: =IF(AZ8=5,G8,0) -> 0 | CA8: 1 | CB8: 1
C9: Plocha komunikace:185,00*0,25*1,4 | E9: 64.75 | M9: Plocha komunikace:185,00*0,25*1,4
A10: 2 | B10: 572701111R00 | C10: Vyspravení výtluků kom-pěší kam. hrubě drceným | D10: m3 | E10: 11.97 | G10: =E10*F10 -> 0 | H10: 1.4805 | I10: =E10*H10 -> 17.721585 | J10: 0 | K10: =E10*J10 -> 0 | O10: 2 | AA10: 1 | AB10: 1 | AC10: 1 | AZ10: 1 | BA10: =IF(AZ10=1,G10,0) -> 0 | BB10: =IF(AZ10=2,G10,0) -> 0 | BC10: =IF(AZ10=3,G10,0) -> 0 | BD10: =IF(AZ10=4,G10,0) -> 0 | BE10: =IF(AZ10=5,G10,0) -> 0 | CA10: 1 | CB10: 1
C11: Plocha komunikace - z 20%:570,00*0,2*0,10*1,05 | E11: 11.97 | M11: Plocha komunikace - z 20%:570,00*0,2*0,10*1,05
A12: 3 | B12: 572713112R00 | C12: Vyrovnání povrchu krytů kamen. obaleným asfaltem | D12: t | E12: 54.8625 | G12: =E12*F12 -> 0 | H12: 1 | I12: =E12*H12 -> 54.8625 | J12: 0 | K12: =E12*J12 -> 0 | O12: 2 | AA12: 1 | AB12: 1 | AC12: 1 | AZ12: 1 | BA12: =IF(AZ12=1,G12,0) -> 0 | BB12: =IF(AZ12=2,G12,0) -> 0 | BC12: =IF(AZ12=3,G12,0) -> 0 | BD12: =IF(AZ12=4,G12,0) -> 0 | BE12: =IF(AZ12=5,G12,0) -> 0 | CA12: 1 | CB12: 1
C13: Plocha komunikace:570,00*0,07/2*2,5*1,1 | E13: 54.8625 | M13: Plocha komunikace:570,00*0,07/2*2,5*1,1
A14: 4 | B14: 573111121R00 | C14: Postřik infiltr., množství zbytkov. poj. 0,60kg/m2 | D14: m2 | E14: 570 | G14: =E14*F14 -> 0 | H14: 0.00561 | I14: =E14*H14 -> 3.1977 | J14: 0 | K14: =E14*J14 -> 0 | O14: 2 | AA14: 1 | AB14: 1 | AC14: 1 | AZ14: 1 | BA14: =IF(AZ14=1,G14,0) -> 0 | BB14: =IF(AZ14=2,G14,0) -> 0 | BC14: =IF(AZ14=3,G14,0) -> 0 | BD14: =IF(AZ14=4,G14,0) -> 0 | BE14: =IF(AZ14=5,G14,0) -> 0 | CA14: 1 | CB14: 1
C15: Plocha komunikace:570,00 | E15: 570 | M15: Plocha komunikace:570,00
A16: 5 | B16: 573231125R00 | C16: Postřik spojovací z KAE, množ. zbyt.asf. 0,5 kg/m2 | D16: m2 | E16: 570 | G16: =E16*F16 -> 0 | H16: 0.00071 | I16: =E16*H16 -> 0.4047 | J16: 0 | K16: =E16*J16 -> 0 | O16: 2 | AA16: 1 | AB16: 1 | AC16: 1 | AZ16: 1 | BA16: =IF(AZ16=1,G16,0) -> 0 | BB16: =IF(AZ16=2,G16,0) -> 0 | BC16: =IF(AZ16=3,G16,0) -> 0 | BD16: =IF(AZ16=4,G16,0) -> 0 | BE16: =IF(AZ16=5,G16,0) -> 0 | CA16: 1 | CB16: 1
C17: Plocha komunikace:570,00 | E17: 570 | M17: Plocha komunikace:570,00
A18: 6 | B18: 577141112RT2 | C18: Beton asfalt. ACO 11+,nebo ACO 16+,do 3 m, tl.5 cm plochy 201-1000 m2 | D18: m2 | E18: 570 | G18: =E18*F18 -> 0 | H18: 0.12966 | I18: =E18*H18 -> 73.9062 | J18: 0 | K18: =E18*J18 -> 0 | O18: 2 | AA18: 1 | AB18: 1 | AC18: 1 | AZ18: 1 | BA18: =IF(AZ18=1,G18,0) -> 0 | BB18: =IF(AZ18=2,G18,0) -> 0 | BC18: =IF(AZ18=3,G18,0) -> 0 | BD18: =IF(AZ18=4,G18,0) -> 0 | BE18: =IF(AZ18=5,G18,0) -> 0 | CA18: 1 | CB18: 1
C19: Včetně zalití pracovní spáry | L19: Včetně zalití pracovní spáry | O19: 3
C20: Plocha komunikace:570,00 | E20: 570 | M20: Plocha komunikace:570,00
B21: Celkem za | C21: 5 Komunikace | G21: =SUM(G7:G20) -> 0 | I21: =SUM(I7:I20) -> 162.8451975 | K21: =SUM(K7:K20) -> 0 | O21: 4 | BA21: =SUM(BA7:BA20) -> 0 | BB21: =SUM(BB7:BB20) -> 0 | BC21: =SUM(BC7:BC20) -> 0 | BD21: =SUM(BD7:BD20) -> 0 | BE21: =SUM(BE7:BE20) -> 0
A22: Díl: | B22: 93 | C22: Dokončovací práce inženýrských staveb | O22: 1
A23: 7 | B23: 938908411RRR | C23: Očištění povrchu krytu omytím | D23: m2 | E23: 570 | G23: =E23*F23 -> 0 | H23: 1e-05 | I23: =E23*H23 -> 0.0057 | J23: 0 | K23: =E23*J23 -> 0 | O23: 2 | AA23: 1 | AB23: 1 | AC23: 1 | AZ23: 1 | BA23: =IF(AZ23=1,G23,0) -> 0 | BB23: =IF(AZ23=2,G23,0) -> 0 | BC23: =IF(AZ23=3,G23,0) -> 0 | BD23: =IF(AZ23=4,G23,0) -> 0 | BE23: =IF(AZ23=5,G23,0) -> 0 | CA23: 1 | CB23: 1
C24: Plocha komunikace:570,00 | E24: 570 | M24: Plocha komunikace:570,00
A25: 8 | B25: 938909111R00 | C25: Odstranění nánosu s povrchu podkladu štěrkového | D25: m2 | E25: 342 | G25: =E25*F25 -> 0 | H25: 0 | I25: =E25*H25 -> 0 | J25: 0 | K25: =E25*J25 -> 0 | O25: 2 | AA25: 1 | AB25: 1 | AC25: 1 | AZ25: 1 | BA25: =IF(AZ25=1,G25,0) -> 0 | BB25: =IF(AZ25=2,G25,0) -> 0 | BC25: =IF(AZ25=3,G25,0) -> 0 | BD25: =IF(AZ25=4,G25,0) -> 0 | BE25: =IF(AZ25=5,G25,0) -> 0 | CA25: 1 | CB25: 1
C26: Plocha komunikace na 60% plochy:570,00*0,6 | E26: 342 | M26: Plocha komunikace na 60% plochy:570,00*0,6
A27: 9 | B27: 938909311R00 | C27: Odstranění nánosu z povrchu živičného nebo beton. | D27: m2 | E27: 228 | G27: =E27*F27 -> 0 | H27: 0 | I27: =E27*H27 -> 0 | J27: 0 | K27: =E27*J27 -> 0 | O27: 2 | AA27: 1 | AB27: 1 | AC27: 1 | AZ27: 1 | BA27: =IF(AZ27=1,G27,0) -> 0 | BB27: =IF(AZ27=2,G27,0) -> 0 | BC27: =IF(AZ27=3,G27,0) -> 0 | BD27: =IF(AZ27=4,G27,0) -> 0 | BE27: =IF(AZ27=5,G27,0) -> 0 | CA27: 1 | CB27: 1
C28: Plocha komunikace na 40% plochy:570,00*0,4 | E28: 228 | M28: Plocha komunikace na 40% plochy:570,00*0,4
A29: 10 | B29: 938909611RRX | C29: Odstranění nánosu na krajnicích tl. do 10 cm | D29: m2 | E29: 64.75 | G29: =E29*F29 -> 0 | H29: 0 | I29: =E29*H29 -> 0 | J29: -0.126 | K29: =E29*J29 -> -8.1585 | O29: 2 | AA29: 1 | AB29: 1 | AC29: 1 | AZ29: 1 | BA29: =IF(AZ29=1,G29,0) -> 0 | BB29: =IF(AZ29=2,G29,0) -> 0 | BC29: =IF(AZ29=3,G29,0) -> 0 | BD29: =IF(AZ29=4,G29,0) -> 0 | BE29: =IF(AZ29=5,G29,0) -> 0 | CA29: 1 | CB29: 1
C30: Včetně odvozu na skládku zhotovitele a poplatku za skládku. | L30: Včetně odvozu na skládku zhotovitele a poplatku za skládku. | O30: 3
C31: Plocha komunikace:185,00*0,25*1,4 | E31: 64.75 | M31: Plocha komunikace:185,00*0,25*1,4
B32: Celkem za | C32: 93 Dokončovací práce inženýrských staveb | G32: =SUM(G22:G31) -> 0 | I32: =SUM(I22:I31) -> 0.0057 | K32: =SUM(K22:K31) -> -8.1585 | O32: 4 | BA32: =SUM(BA22:BA31) -> 0 | BB32: =SUM(BB22:BB31) -> 0 | BC32: =SUM(BC22:BC31) -> 0 | BD32: =SUM(BD22:BD31) -> 0 | BE32: =SUM(BE22:BE31) -> 0
A33: Díl: | B33: 99 | C33: Staveništní přesun hmot | O33: 1
A34: 11 | B34: 998225111R00 | C34: Přesun hmot, pozemní komunikace, kryt živičný | D34: t | E34: 162.8508975 | G34: =E34*F34 -> 0 | H34: 0 | I34: =E34*H34 -> 0 | K34: =E34*J34 -> 0 | O34: 2 | AA34: 7 | AB34: 1 | AC34: 2 | AZ34: 1 | BA34: =IF(AZ34=1,G34,0) -> 0 | BB34: =IF(AZ34=2,G34,0) -> 0 | BC34: =IF(AZ34=3,G34,0) -> 0 | BD34: =IF(AZ34=4,G34,0) -> 0 | BE34: =IF(AZ34=5,G34,0) -> 0 | CA34: 7 | CB34: 1
B35: Celkem za | C35: 99 Staveništní přesun hmot | G35: =SUM(G33:G34) -> 0 | I35: =SUM(I33:I34) -> 0 | K35: =SUM(K33:K34) -> 0 | O35: 4 | BA35: =SUM(BA33:BA34) -> 0 | BB35: =SUM(BB33:BB34) -> 0 | BC35: =SUM(BC33:BC34) -> 0 | BD35: =SUM(BD33:BD34) -> 0 | BE35: =SUM(BE33:BE34) -> 0

Sheet 10 338110 KL
A1: POLOŽKOVÝ ROZPOČET
A2: Rozpočet | C2: 3381/10 | D2: Oprava části chodníku v ul. Přepeřská | F2: JKSO | G2: 822.27
A4: Objekt | F4: SKP
A5: 10 | C5: Oprava části chodníku v ul. Přepeřská | F5: Měrná jednotka | G5: m2
A6: Stavba | F6: Počet jednotek | G6: 0
A7: 3381 | C7: Turnov-Opravy místních komunikací a chodníků 2024 | F7: Náklady na m.j. | G7: =IF(G6=0,,ROUND((F30+F32)/G6,1)) -> 0
A8: Projektant | F8: Typ rozpočtu
A9: Zpracovatel projektu
A10: Objednatel | C10: Město TURNOV
A11: Dodavatel | C11: . | F11: Zakázkové číslo
A12: Rozpočtoval | F12: Počet listů
A13: ROZPOČTOVÉ NÁKLADY
A14: Základní rozpočtové náklady | D14: Ostatní rozpočtové náklady
B15: HSV celkem | C15: ='10 338110 Rek'!E11 -> 0 | D15: ='10 338110 Rek'!A16 -> Zařízení staveniště | G15: ='10 338110 Rek'!I16 -> 0
A16: Z | B16: PSV celkem | C16: ='10 338110 Rek'!F11 -> 0 | D16: ='10 338110 Rek'!A17 -> Kompletační činnost (IČD) | G16: ='10 338110 Rek'!I17 -> 0
A17: R | B17: M práce celkem | C17: ='10 338110 Rek'!H11 -> 0 | D17: ='10 338110 Rek'!A18 -> Vytýčení stavby a podz. inženýrských sítí | G17: ='10 338110 Rek'!I18 -> 0
A18: N | B18: M dodávky celkem | C18: ='10 338110 Rek'!G11 -> 0 | D18: ='10 338110 Rek'!A19 -> Dokumentace skutečného provedení | G18: ='10 338110 Rek'!I19 -> 0
A19: ZRN celkem | C19: =SUM(C15:C18) -> 0 | D19: ='10 338110 Rek'!A20 -> Geodetické zaměření stavby | G19: ='10 338110 Rek'!I20 -> 0
A21: HZS | C21: ='10 338110 Rek'!I11 -> 0
A22: ZRN+HZS | C22: =C19+C21 -> 0
A23: ZRN+ost.náklady+HZS | C23: =C22+G23 -> 0 | D23: Ostatní náklady celkem | G23: ='10 338110 Rek'!H21 -> 0
A24: Vypracoval | D24: Za zhotovitele | F24: Za objednatele
A25: Jméno : | D25: Jméno : | F25: Jméno :
A26: Datum : | D26: Datum : | F26: Datum :
A28: Podpis : | D28: Podpis: | F28: Podpis:
A30: Základ pro DPH | C30: 21 | D30: % | F30: =C23-F32 -> 0
A31: DPH | C31: =C30 -> 21 | D31: % | F31: =ROUND(PRODUCT(F30,C31/100),0) -> 0
A32: Základ pro DPH | C32: 0 | D32: % | F32: 0
A33: DPH | C33: =C32 -> 0 | D33: % | F33: =ROUND(PRODUCT(F32,C33/100),0) -> 0
A34: CENA ZA OBJEKT CELKEM | F34: =ROUND(SUM(F30:F33),0) -> 0
A36: Poznámka :

Sheet 10 338110 Rek
A1: Stavba : | C1: 3381 Turnov-Opravy místních komunikací a chodníků 2024 | G1: Rozpočet : | H1: 3381/10
A2: Objekt : | C2: 10 Oprava části chodníku v ul. Přepeřská | G2: Oprava části chodníku v ul. Přepeřská
A4: REKAPITULACE STAVEBNÍCH DÍLŮ
B6: Stavební díl | E6: HSV | F6: PSV | G6: Dodávka | H6: Montáž | I6: HZS
A7: ='10 338110 Pol'!B7 -> 1 | B7: ='10 338110 Pol'!C7 -> Zemní práce | E7: ='10 338110 Pol'!BA25 -> 0 | F7: ='10 338110 Pol'!BB25 -> 0 | G7: ='10 338110 Pol'!BC25 -> 0 | H7: ='10 338110 Pol'!BD25 -> 0 | I7: ='10 338110 Pol'!BE25 -> 0
A8: ='10 338110 Pol'!B26 -> 5 | B8: ='10 338110 Pol'!C26 -> Komunikace | E8: ='10 338110 Pol'!BA35 -> 0 | F8: ='10 338110 Pol'!BB35 -> 0 | G8: ='10 338110 Pol'!BC35 -> 0 | H8: ='10 338110 Pol'!BD35 -> 0 | I8: ='10 338110 Pol'!BE35 -> 0
A9: ='10 338110 Pol'!B36 -> 91 | B9: ='10 338110 Pol'!C36 -> Doplňující práce na komunikaci | E9: ='10 338110 Pol'!BA43 -> 0 | F9: ='10 338110 Pol'!BB43 -> 0 | G9: ='10 338110 Pol'!BC43 -> 0 | H9: ='10 338110 Pol'!BD43 -> 0 | I9: ='10 338110 Pol'!BE43 -> 0
A10: ='10 338110 Pol'!B44 -> 99 | B10: ='10 338110 Pol'!C44 -> Staveništní přesun hmot | E10: ='10 338110 Pol'!BA46 -> 0 | F10: ='10 338110 Pol'!BB46 -> 0 | G10: ='10 338110 Pol'!BC46 -> 0 | H10: ='10 338110 Pol'!BD46 -> 0 | I10: ='10 338110 Pol'!BE46 -> 0
B11: CELKEM OBJEKT | E11: =SUM(E7:E10) -> 0 | F11: =SUM(F7:F10) -> 0 | G11: =SUM(G7:G10) -> 0 | H11: =SUM(H7:H10) -> 0 | I11: =SUM(I7:I10) -> 0
A13: VEDLEJŠÍ ROZPOČTOVÉ NÁKLADY
A15: Název VRN | E15: Kč | I15: Kč
A16: Zařízení staveniště | E16: 0 | I16: =E16+F16*G16/100 -> 0 | BA16: 2
A17: Kompletační činnost (IČD) | E17: 0 | I17: =E17+F17*G17/100 -> 0 | BA17: 2
A18: Vytýčení stavby a podz. inženýrských sítí | E18: 0 | I18: =E18+F18*G18/100 -> 0 | BA18: 0
A19: Dokumentace skutečného provedení | E19: 0 | I19: =E19+F19*G19/100 -> 0 | BA19: 0
A20: Geodetické zaměření stavby | E20: 0 | I20: =E20+F20*G20/100 -> 0 | BA20: 0
B21: CELKEM VRN | H21: =SUM(I16:I20) -> 0

Sheet 10 338110 Pol
A1: Položkový rozpočet
A3: Stavba : | C3: 3381 Turnov-Opravy místních komunikací a chodníků 2024 | E3: Rozpočet: | F3: ='10 338110 Rek'!H1 -> 3381/10
A4: Objekt : | C4: 10 Oprava části chodníku v ul. Přepeřská | E4: ='10 338110 Rek'!G2 -> Oprava části chodníku v ul. Přepeřská
A6: P.č. | B6: Číslo položky | C6: Název položky | D6: MJ | E6: množství | F6: cena / MJ | G6: celkem (Kč) | H6: Jednotková hmotnost | I6: Celková hmotnost | J6: Jednotková dem.hmot. | K6: Celková dem.hmot.
A7: Díl: | B7: 1 | C7: Zemní práce | O7: 1
A8: 1 | B8: 113108406R00 | C8: Odstranění asfaltové vrstvy pl.nad 50 m2, tl. 6 cm | D8: m2 | E8: 160 | G8: =E8*F8 -> 0 | H8: 0 | I8: =E8*H8 -> 0 | J8: -0.132 | K8: =E8*J8 -> -21.12 | O8: 2 | AA8: 1 | AB8: 1 | AC8: 1 | AZ8: 1 | BA8: =IF(AZ8=1,G8,0) -> 0 | BB8: =IF(AZ8=2,G8,0) -> 0 | BC8: =IF(AZ8=3,G8,0) -> 0 | BD8: =IF(AZ8=4,G8,0) -> 0 | BE8: =IF(AZ8=5,G8,0) -> 0 | CA8: 1 | CB8: 1
C9: Stávající asfaltový chodník:160,00 | E9: 160 | M9: Stávající asfaltový chodník:160,00
A10: 2 | B10: 132201110R00 | C10: Hloubení rýh š.do 60 cm v hor.3 do 50 m3, STROJNĚ | D10: m3 | E10: 8 | G10: =E10*F10 -> 0 | H10: 0 | I10: =E10*H10 -> 0 | J10: 0 | K10: =E10*J10 -> 0 | O10: 2 | AA10: 1 | AB10: 1 | AC10: 1 | AZ10: 1 | BA10: =IF(AZ10=1,G10,0) -> 0 | BB10: =IF(AZ10=2,G10,0) -> 0 | BC10: =IF(AZ10=3,G10,0) -> 0 | BD10: =IF(AZ10=4,G10,0) -> 0 | BE10: =IF(AZ10=5,G10,0) -> 0 | CA10: 1 | CB10: 1
C11: Položka obsahuje hloubení rýh traktorbagrem, naložení výkopku na dopravní prostředek pro svislé, nebo vodorovné přemístění, popř. přemístění výkopku do 3 m (po povrchu území), případné zajištění rypadel polštáři, udržování pracoviště a ochranu výkopiště proti stékání srážkové vody z okolního terénu i s jejím odvodněním, nebo odvedením, přesekání a odstranění kořenů ve výkopišti, odstranění napadávek, urovnání dna výkopu. | L11: Položka obsahuje hloubení rýh traktorbagrem, naložení výkopku na dopravní prostředek pro svislé, nebo vodorovné přemístění, popř. přemístění výkopku do 3 m (po povrchu území), případné zajištění rypadel polštáři, udržování pracoviště a ochranu výkopiště proti stékání srážkové vody z okolního terénu i s jejím odvodněním, nebo odvedením, přesekání a odstranění kořenů ve výkopišti, odstranění napadávek, urovnání dna výkopu. | O11: 3
C12: Výkopy pro osazení obrubníků:80,00*2*0,25*0,20 | E12: 8 | M12: Výkopy pro osazení obrubníků:80,00*2*0,25*0,20
A13: 3 | B13: 162701105RSZ | C13: Vodorovné přemístění výkopku z hor.1-7 na skládku zhotovitele | D13: m3 | E13: 8 | G13: =E13*F13 -> 0 | H13: 0 | I13: =E13*H13 -> 0 | J13: 0 | K13: =E13*J13 -> 0 | O13: 2 | AA13: 1 | AB13: 1 | AC13: 1 | AZ13: 1 | BA13: =IF(AZ13=1,G13,0) -> 0 | BB13: =IF(AZ13=2,G13,0) -> 0 | BC13: =IF(AZ13=3,G13,0) -> 0 | BD13: =IF(AZ13=4,G13,0) -> 0 | BE13: =IF(AZ13=5,G13,0) -> 0 | CA13: 1 | CB13: 1
C14: Výkopy pro osazení obrubníků:80,00*2*0,25*0,20 | E14: 8 | M14: Výkopy pro osazení obrubníků:80,00*2*0,25*0,20
A15: 4 | B15: 181101102R00 | C15: Úprava pláně v zářezech v hor. 1-4, se zhutněním | D15: m2 | E15: 160 | G15: =E15*F15 -> 0 | H15: 0 | I15: =E15*H15 -> 0 | J15: 0 | K15: =E15*J15 -> 0 | O15: 2 | AA15: 1 | AB15: 1 | AC15: 1 | AZ15: 1 | BA15: =IF(AZ15=1,G15,0) -> 0 | BB15: =IF(AZ15=2,G15,0) -> 0 | BC15: =IF(AZ15=3,G15,0) -> 0 | BD15: =IF(AZ15=4,G15,0) -> 0 | BE15: =IF(AZ15=5,G15,0) -> 0 | CA15: 1 | CB15: 1
C16: Doplnění podkladů pod dlažbu:80,00*2,00 | E16: 160 | M16: Doplnění podkladů pod dlažbu:80,00*2,00
A17: 5 | B17: 181300012RAC | C17: Rozprostření ornice v rovině tloušťka 20 cm dovoz ornice ze vzdálenosti 5 km, osetí trávou | D17: m2 | E17: 62.5 | G17: =E17*F17 -> 0 | H17: 3e-05 | I17: =E17*H17 -> 0.001875 | J17: 0 | K17: =E17*J17 -> 0 | O17: 2 | AA17: 1 | AB17: 1 | AC17: 1 | AZ17: 1 | BA17: =IF(AZ17=1,G17,0) -> 0 | BB17: =IF(AZ17=2,G17,0) -> 0 | BC17: =IF(AZ17=3,G17,0) -> 0 | BD17: =IF(AZ17=4,G17,0) -> 0 | BE17: =IF(AZ17=5,G17,0) -> 0 | CA17: 1 | CB17: 1
C18: Včetně přesunu hmot. | L18: Včetně přesunu hmot. | O18: 3
C19: Podél obrubníků:(80,00+45,00)*0,50 | E19: 62.5 | M19: Podél obrubníků:(80,00+45,00)*0,50
A20: 6 | B20: 199000002R00 | C20: Poplatek za skládku horniny 1- 7 č. dle katal. odpadů 17 05 04 | D20: m3 | E20: 8 | G20: =E20*F20 -> 0 | H20: 0 | I20: =E20*H20 -> 0 | J20: 0 | K20: =E20*J20 -> 0 | O20: 2 | AA20: 1 | AB20: 1 | AC20: 1 | AZ20: 1 | BA20: =IF(AZ20=1,G20,0) -> 0 | BB20: =IF(AZ20=2,G20,0) -> 0 | BC20: =IF(AZ20=3,G20,0) -> 0 | BD20: =IF(AZ20=4,G20,0) -> 0 | BE20: =IF(AZ20=5,G20,0) -> 0 | CA20: 1 | CB20: 1
C21: Výkopy pro osazení obrubníků:80,00*2*0,25*0,20 | E21: 8 | M21: Výkopy pro osazení obrubníků:80,00*2*0,25*0,20
A22: 7 | B22: 979082113RSZ | C22: Vodorovná doprava suti po suchu na skládku zhotovitele | D22: t | E22: 21.12 | G22: =E22*F22 -> 0 | H22: 0 | I22: =E22*H22 -> 0 | J22: 0 | K22: =E22*J22 -> 0 | O22: 2 | AA22: 1 | AB22: 1 | AC22: 1 | AZ22: 1 | BA22: =IF(AZ22=1,G22,0) -> 0 | BB22: =IF(AZ22=2,G22,0) -> 0 | BC22: =IF(AZ22=3,G22,0) -> 0 | BD22: =IF(AZ22=4,G22,0) -> 0 | BE22: =IF(AZ22=5,G22,0) -> 0 | CA22: 1 | CB22: 1
A23: 8 | B23: 979999995R00 | C23: Poplatek za reciklaci asfaltu, kusovost do 1600cm2 skupina 170302 | D23: t | E23: 21.12 | G23: =E23*F23 -> 0 | H23: 0 | I23: =E23*H23 -> 0 | J23: 0 | K23: =E23*J23 -> 0 | O23: 2 | AA23: 1 | AB23: 1 | AC23: 1 | AZ23: 1 | BA23: =IF(AZ23=1,G23,0) -> 0 | BB23: =IF(AZ23=2,G23,0) -> 0 | BC23: =IF(AZ23=3,G23,0) -> 0 | BD23: =IF(AZ23=4,G23,0) -> 0 | BE23: =IF(AZ23=5,G23,0) -> 0 | CA23: 1 | CB23: 1
C24: Položka je určena pro suť o velikosti kusu do 30x30 cm (technologický materiál určený k recyklaci). | L24: Položka je určena pro suť o velikosti kusu do 30x30 cm (technologický materiál určený k recyklaci). | O24: 3
B25: Celkem za | C25: 1 Zemní práce | G25: =SUM(G7:G24) -> 0 | I25: =SUM(I7:I24) -> 0.001875 | K25: =SUM(K7:K24) -> -21.12 | O25: 4 | BA25: =SUM(BA7:BA24) -> 0 | BB25: =SUM(BB7:BB24) -> 0 | BC25: =SUM(BC7:BC24) -> 0 | BD25: =SUM(BD7:BD24) -> 0 | BE25: =SUM(BE7:BE24) -> 0
A26: Díl: | B26: 5 | C26: Komunikace | O26: 1
A27: 9 | B27: 566301111R00 | C27: Úprava krytu kamenivem drceným do 0,06 m3/m2 | D27: m2 | E27: 160 | G27: =E27*F27 -> 0 | H27: 0.09848 | I27: =E27*H27 -> 15.7568 | J27: 0 | K27: =E27*J27 -> 0 | O27: 2 | AA27: 1 | AB27: 1 | AC27: 1 | AZ27: 1 | BA27: =IF(AZ27=1,G27,0) -> 0 | BB27: =IF(AZ27=2,G27,0) -> 0 | BC27: =IF(AZ27=3,G27,0) -> 0 | BD27: =IF(AZ27=4,G27,0) -> 0 | BE27: =IF(AZ27=5,G27,0) -> 0 | CA27: 1 | CB27: 1
C28: Doplnění podkladů pod dlažbu:80,00*2,00 | E28: 160 | M28: Doplnění podkladů pod dlažbu:80,00*2,00
A29: 10 | B29: 596215021R00 | C29: Kladení zámkové dlažby tl. 6 cm do drtě tl. 4 cm | D29: m2 | E29: 160 | G29: =E29*F29 -> 0 | H29: 0.0739 | I29: =E29*H29 -> 11.824 | J29: 0 | K29: =E29*J29 -> 0 | O29: 2 | AA29: 1 | AB29: 1 | AC29: 1 | AZ29: 1 | BA29: =IF(AZ29=1,G29,0) -> 0 | BB29: =IF(AZ29=2,G29,0) -> 0 | BC29: =IF(AZ29=3,G29,0) -> 0 | BD29: =IF(AZ29=4,G29,0) -> 0 | BE29: =IF(AZ29=5,G29,0) -> 0 | CA29: 1 | CB29: 1
C30: Doplnění podkladů pod dlažbu:80,00*2,00 | E30: 160 | M30: Doplnění podkladů pod dlažbu:80,00*2,00
A31: 11 | B31: 596291111R00 | C31: Řezání zámkové dlažby tl. 60 mm | D31: m | E31: 32 | G31: =E31*F31 -> 0 | H31: 0.00033 | I31: =E31*H31 -> 0.01056 | J31: 0 | K31: =E31*J31 -> 0 | O31: 2 | AA31: 1 | AB31: 1 | AC31: 1 | AZ31: 1 | BA31: =IF(AZ31=1,G31,0) -> 0 | BB31: =IF(AZ31=2,G31,0) -> 0 | BC31: =IF(AZ31=3,G31,0) -> 0 | BD31: =IF(AZ31=4,G31,0) -> 0 | BE31: =IF(AZ31=5,G31,0) -> 0 | CA31: 1 | CB31: 1
C32: Doplnění podkladů pod dlažbu:80,00*2,00*0,2 | E32: 32 | M32: Doplnění podkladů pod dlažbu:80,00*2,00*0,2
A33: 12 | B33: 59245268.R | C33: Dlažba betonová skládaná přírodní 20x10x6 cm | D33: m2 | E33: 163.2 | G33: =E33*F33 -> 0 | H33: 0.137 | I33: =E33*H33 -> 22.3584 | K33: =E33*J33 -> 0 | O33: 2 | AA33: 3 | AB33: 1 | AC33: 59245268.R | AZ33: 1 | BA33: =IF(AZ33=1,G33,0) -> 0 | BB33: =IF(AZ33=2,G33,0) -> 0 | BC33: =IF(AZ33=3,G33,0) -> 0 | BD33: =IF(AZ33=4,G33,0) -> 0 | BE33: =IF(AZ33=5,G33,0) -> 0 | CA33: 3 | CB33: 1
C34: Doplnění podkladů pod dlažbu:80,00*2,00*1,02 | E34: 163.2 | M34: Doplnění podkladů pod dlažbu:80,00*2,00*1,02
B35: Celkem za | C35: 5 Komunikace | G35: =SUM(G26:G34) -> 0 | I35: =SUM(I26:I34) -> 49.94976 | K35: =SUM(K26:K34) -> 0 | O35: 4 | BA35: =SUM(BA26:BA34) -> 0 | BB35: =SUM(BB26:BB34) -> 0 | BC35: =SUM(BC26:BC34) -> 0 | BD35: =SUM(BD26:BD34) -> 0 | BE35: =SUM(BE26:BE34) -> 0
A36: Díl: | B36: 91 | C36: Doplňující práce na komunikaci | O36: 1
A37: 13 | B37: 916561111RT2 | C37: Osazení záhon.obrubníků do lože z C 12/15 s opěrou včetně obrubníku 100/5/20 cm | D37: m | E37: 160 | G37: =E37*F37 -> 0 | H37: 0.12472 | I37: =E37*H37 -> 19.9552 | J37: 0 | K37: =E37*J37 -> 0 | O37: 2 | AA37: 1 | AB37: 1 | AC37: 1 | AZ37: 1 | BA37: =IF(AZ37=1,G37,0) -> 0 | BB37: =IF(AZ37=2,G37,0) -> 0 | BC37: =IF(AZ37=3,G37,0) -> 0 | BD37: =IF(AZ37=4,G37,0) -> 0 | BE37: =IF(AZ37=5,G37,0) -> 0 | CA37: 1 | CB37: 1
C38: Obrubník podél chodníku:80,00*2 | E38: 160 | M38: Obrubník podél chodníku:80,00*2
A39: 14 | B39: 918101111R00 | C39: Lože pod obrubníky nebo obruby dlažeb z C 12/15 | D39: m3 | E39: 4 | G39: =E39*F39 -> 0 | H39: 2.525 | I39: =E39*H39 -> 10.1 | J39: 0 | K39: =E39*J39 -> 0 | O39: 2 | AA39: 1 | AB39: 1 | AC39: 1 | AZ39: 1 | BA39: =IF(AZ39=1,G39,0) -> 0 | BB39: =IF(AZ39=2,G39,0) -> 0 | BC39: =IF(AZ39=3,G39,0) -> 0 | BD39: =IF(AZ39=4,G39,0) -> 0 | BE39: =IF(AZ39=5,G39,0) -> 0 | CA39: 1 | CB39: 1
C40: Obrubník podél chodníku:80,00*2*0,25*0,10 | E40: 4 | M40: Obrubník podél chodníku:80,00*2*0,25*0,10
A41: 15 | B41: 919731122R00 | C41: Zarovnání styčné plochy živičné tl. do 10 cm | D41: m | E41: 4.5 | G41: =E41*F41 -> 0 | H41: 0 | I41: =E41*H41 -> 0 | J41: 0 | K41: =E41*J41 -> 0 | O41: 2 | AA41: 1 | AB41: 1 | AC41: 1 | AZ41: 1 | BA41: =IF(AZ41=1,G41,0) -> 0 | BB41: =IF(AZ41=2,G41,0) -> 0 | BC41: =IF(AZ41=3,G41,0) -> 0 | BD41: =IF(AZ41=4,G41,0) -> 0 | BE41: =IF(AZ41=5,G41,0) -> 0 | CA41: 1 | CB41: 1
C42: Začátek a konec chodníku:2,25*2 | E42: 4.5 | M42: Začátek a konec chodníku:2,25*2
B43: Celkem za | C43: 91 Doplňující práce na komunikaci | G43: =SUM(G36:G42) -> 0 | I43: =SUM(I36:I42) -> 30.0552 | K43: =SUM(K36:K42) -> 0 | O43: 4 | BA43: =SUM(BA36:BA42) -> 0 | BB43: =SUM(BB36:BB42) -> 0 | BC43: =SUM(BC36:BC42) -> 0 | BD43: =SUM(BD36:BD42) -> 0 | BE43: =SUM(BE36:BE42) -> 0
A44: Díl: | B44: 99 | C44: Staveništní přesun hmot | O44: 1
A45: 16 | B45: 998223011R00 | C45: Přesun hmot, pozemní komunikace, kryt dlážděný | D45: t | E45: 80.006835 | G45: =E45*F45 -> 0 | H45: 0 | I45: =E45*H45 -> 0 | K45: =E45*J45 -> 0 | O45: 2 | AA45: 7 | AB45: 1 | AC45: 2 | AZ45: 1 | BA45: =IF(AZ45=1,G45,0) -> 0 | BB45: =IF(AZ45=2,G45,0) -> 0 | BC45: =IF(AZ45=3,G45,0) -> 0 | BD45: =IF(AZ45=4,G45,0) -> 0 | BE45: =IF(AZ45=5,G45,0) -> 0 | CA45: 7 | CB45: 1
B46: Celkem za | C46: 99 Staveništní přesun hmot | G46: =SUM(G44:G45) -> 0 | I46: =SUM(I44:I45) -> 0 | K46: =SUM(K44:K45) -> 0 | O46: 4 | BA46: =SUM(BA44:BA45) -> 0 | BB46: =SUM(BB44:BB45) -> 0 | BC46: =SUM(BC44:BC45) -> 0 | BD46: =SUM(BD44:BD45) -> 0 | BE46: =SUM(BE44:BE45) -> 0

Sheet 11 338111 KL
A1: POLOŽKOVÝ ROZPOČET
A2: Rozpočet | C2: 3381/11 | D2: Oprava části chodníku u provozovny UNIVER | F2: JKSO | G2: 822.27
A4: Objekt | F4: SKP
A5: 11 | C5: Oprava části chodníku u provozovny UNIVER | F5: Měrná jednotka | G5: m2
A6: Stavba | F6: Počet jednotek | G6: 0
A7: 3381 | C7: Turnov-Opravy místních komunikací a chodníků 2024 | F7: Náklady na m.j. | G7: =IF(G6=0,,ROUND((F30+F32)/G6,1)) -> 0
A8: Projektant | F8: Typ rozpočtu
A9: Zpracovatel projektu
A10: Objednatel | C10: Město TURNOV
A11: Dodavatel | C11: . | F11: Zakázkové číslo
A12: Rozpočtoval | F12: Počet listů
A13: ROZPOČTOVÉ NÁKLADY
A14: Základní rozpočtové náklady | D14: Ostatní rozpočtové náklady
B15: HSV celkem | C15: ='11 338111 Rek'!E11 -> 0 | D15: ='11 338111 Rek'!A16 -> Zařízení staveniště | G15: ='11 338111 Rek'!I16 -> 0
A16: Z | B16: PSV celkem | C16: ='11 338111 Rek'!F11 -> 0 | D16: ='11 338111 Rek'!A17 -> Kompletační činnost (IČD) | G16: ='11 338111 Rek'!I17 -> 0
A17: R | B17: M práce celkem | C17: ='11 338111 Rek'!H11 -> 0 | D17: ='11 338111 Rek'!A18 -> Vytýčení stavby a podz. inženýrských sítí | G17: ='11 338111 Rek'!I18 -> 0
A18: N | B18: M dodávky celkem | C18: ='11 338111 Rek'!G11 -> 0 | D18: ='11 338111 Rek'!A19 -> Dokumentace skutečného provedení | G18: ='11 338111 Rek'!I19 -> 0
A19: ZRN celkem | C19: =SUM(C15:C18) -> 0 | D19: ='11 338111 Rek'!A20 -> Geodetické zaměření stavby | G19: ='11 338111 Rek'!I20 -> 0
D20: ='11 338111 Rek'!A21 -> DIO | G20: ='11 338111 Rek'!I21 -> 0
A21: HZS | C21: ='11 338111 Rek'!I11 -> 0
A22: ZRN+HZS | C22: =C19+C21 -> 0
A23: ZRN+ost.náklady+HZS | C23: =C22+G23 -> 0 | D23: Ostatní náklady celkem | G23: ='11 338111 Rek'!H22 -> 0
A24: Vypracoval | D24: Za zhotovitele | F24: Za objednatele
A25: Jméno : | D25: Jméno : | F25: Jméno :
A26: Datum : | D26: Datum : | F26: Datum :
A28: Podpis : | D28: Podpis: | F28: Podpis:
A30: Základ pro DPH | C30: 21 | D30: % | F30: =C23-F32 -> 0
A31: DPH | C31: =C30 -> 21 | D31: % | F31: =ROUND(PRODUCT(F30,C31/100),0) -> 0
A32: Základ pro DPH | C32: 0 | D32: % | F32: 0
A33: DPH | C33: =C32 -> 0 | D33: % | F33: =ROUND(PRODUCT(F32,C33/100),0) -> 0
A34: CENA ZA OBJEKT CELKEM | F34: =ROUND(SUM(F30:F33),0) -> 0
A36: Poznámka :

Sheet 11 338111 Rek
A1: Stavba : | C1: 3381 Turnov-Opravy místních komunikací a chodníků 2024 | G1: Rozpočet : | H1: 3381/11
A2: Objekt : | C2: 11 Oprava části chodníku u provozovny UNIVER | G2: Oprava části chodníku u provozovny UNIVER
A4: REKAPITULACE STAVEBNÍCH DÍLŮ
B6: Stavební díl | E6: HSV | F6: PSV | G6: Dodávka | H6: Montáž | I6: HZS
A7: ='11 338111 Pol'!B7 -> 5 | B7: ='11 338111 Pol'!C7 -> Komunikace | E7: ='11 338111 Pol'!BA19 -> 0 | F7: ='11 338111 Pol'!BB19 -> 0 | G7: ='11 338111 Pol'!BC19 -> 0 | H7: ='11 338111 Pol'!BD19 -> 0 | I7: ='11 338111 Pol'!BE19 -> 0
A8: ='11 338111 Pol'!B20 -> 8 | B8: ='11 338111 Pol'!C20 -> Trubní vedení | E8: ='11 338111 Pol'!BA22 -> 0 | F8: ='11 338111 Pol'!BB22 -> 0 | G8: ='11 338111 Pol'!BC22 -> 0 | H8: ='11 338111 Pol'!BD22 -> 0 | I8: ='11 338111 Pol'!BE22 -> 0
A9: ='11 338111 Pol'!B23 -> 93 | B9: ='11 338111 Pol'!C23 -> Dokončovací práce inženýrských staveb | E9: ='11 338111 Pol'!BA30 -> 0 | F9: ='11 338111 Pol'!BB30 -> 0 | G9: ='11 338111 Pol'!BC30 -> 0 | H9: ='11 338111 Pol'!BD30 -> 0 | I9: ='11 338111 Pol'!BE30 -> 0
A10: ='11 338111 Pol'!B31 -> 99 | B10: ='11 338111 Pol'!C31 -> Staveništní přesun hmot | E10: ='11 338111 Pol'!BA33 -> 0 | F10: ='11 338111 Pol'!BB33 -> 0 | G10: ='11 338111 Pol'!BC33 -> 0 | H10: ='11 338111 Pol'!BD33 -> 0 | I10: ='11 338111 Pol'!BE33 -> 0
B11: CELKEM OBJEKT | E11: =SUM(E7:E10) -> 0 | F11: =SUM(F7:F10) -> 0 | G11: =SUM(G7:G10) -> 0 | H11: =SUM(H7:H10) -> 0 | I11: =SUM(I7:I10) -> 0
A13: VEDLEJŠÍ ROZPOČTOVÉ NÁKLADY
A15: Název VRN | E15: Kč | I15: Kč
A16: Zařízení staveniště | E16: 0 | I16: =E16+F16*G16/100 -> 0 | BA16: 2
A17: Kompletační činnost (IČD) | E17: 0 | I17: 0 | BA17: 2
A18: Vytýčení stavby a podz. inženýrských sítí | E18: 0 | I18: 0 | BA18: 0
A19: Dokumentace skutečného provedení | E19: 0 | I19: 0 | BA19: 0
A20: Geodetické zaměření stavby | E20: 0 | I20: 0 | BA20: 0
A21: DIO | E21: 0 | I21: 0 | BA21: 0
B22: CELKEM VRN | H22: =SUM(I16:I21) -> 0

Sheet 11 338111 Pol
A1: Položkový rozpočet
A3: Stavba : | C3: 3381 Turnov-Opravy místních komunikací a chodníků 2024 | E3: Rozpočet: | F3: ='11 338111 Rek'!H1 -> 3381/11
A4: Objekt : | C4: 11 Oprava části chodníku u provozovny UNIVER | E4: ='11 338111 Rek'!G2 -> Oprava části chodníku u provozovny UNIVER
A6: P.č. | B6: Číslo položky | C6: Název položky | D6: MJ | E6: množství | F6: cena / MJ | G6: celkem (Kč) | H6: Jednotková hmotnost | I6: Celková hmotnost | J6: Jednotková dem.hmot. | K6: Celková dem.hmot.
A7: Díl: | B7: 5 | C7: Komunikace | O7: 1
A8: 1 | B8: 572713112R00 | C8: Vyrovnání povrchu krytů kamen. obaleným asfaltem | D8: t | E8: 12.375 | G8: =E8*F8 -> 0 | H8: 1 | I8: =E8*H8 -> 12.375 | J8: 0 | K8: =E8*J8 -> 0 | O8: 2 | AA8: 1 | AB8: 1 | AC8: 1 | AZ8: 1 | BA8: =IF(AZ8=1,G8,0) -> 0 | BB8: =IF(AZ8=2,G8,0) -> 0 | BC8: =IF(AZ8=3,G8,0) -> 0 | BD8: =IF(AZ8=4,G8,0) -> 0 | BE8: =IF(AZ8=5,G8,0) -> 0 | CA8: 1 | CB8: 1
C9: Plocha komunikace - Stávající betonová plocha:300,00*0,03/2*2,5*1,1 | E9: 12.375 | M9: Plocha komunikace - Stávající betonová plocha:300,00*0,03/2*2,5*1,1
A10: 2 | B10: 573231125R00 | C10: Postřik spojovací z KAE, množ. zbyt.asf. 0,5 kg/m2 | D10: m2 | E10: 320 | G10: =E10*F10 -> 0 | H10: 0.00071 | I10: =E10*H10 -> 0.2272 | J10: 0 | K10: =E10*J10 -> 0 | O10: 2 | AA10: 1 | AB10: 1 | AC10: 1 | AZ10: 1 | BA10: =IF(AZ10=1,G10,0) -> 0 | BB10: =IF(AZ10=2,G10,0) -> 0 | BC10: =IF(AZ10=3,G10,0) -> 0 | BD10: =IF(AZ10=4,G10,0) -> 0 | BE10: =IF(AZ10=5,G10,0) -> 0 | CA10: 1 | CB10: 1
C11: Plocha komunikace:300,00 | E11: 300 | M11: Plocha komunikace:300,00
C12: Rozšíření (náběh) u parkoviště "UNIVER":20,00 | E12: 20 | M12: Rozšíření (náběh) u parkoviště "UNIVER":20,00
A13: 3 | B13: 577142112RT2 | C13: Beton asfaltový ACO 11+ obrusný nad 3 m, tl.5 cm plochy 201-1000 m2 | D13: m2 | E13: 320 | G13: =E13*F13 -> 0 | H13: 0.12966 | I13: =E13*H13 -> 41.4912 | J13: 0 | K13: =E13*J13 -> 0 | O13: 2 | AA13: 1 | AB13: 1 | AC13: 1 | AZ13: 1 | BA13: =IF(AZ13=1,G13,0) -> 0 | BB13: =IF(AZ13=2,G13,0) -> 0 | BC13: =IF(AZ13=3,G13,0) -> 0 | BD13: =IF(AZ13=4,G13,0) -> 0 | BE13: =IF(AZ13=5,G13,0) -> 0 | CA13: 1 | CB13: 1
C14: Plocha komunikace:300,00 | E14: 300 | M14: Plocha komunikace:300,00
C15: Rozšíření (náběh) u parkoviště "UNIVER":20,00 | E15: 20 | M15: Rozšíření (náběh) u parkoviště "UNIVER":20,00
A16: 4 | B16: 591050019RRX | C16: Komunikace z dlažby zámkové dlažba tloušťka 6 cm Rozebrání a opětovné položení stávající dlažby | D16: m2 | E16: 4 | G16: =E16*F16 -> 0 | H16: 1.1893 | I16: =E16*H16 -> 4.7572 | J16: 0 | K16: =E16*J16 -> 0 | O16: 2 | AA16: 1 | AB16: 1 | AC16: 1 | AZ16: 1 | BA16: =IF(AZ16=1,G16,0) -> 0 | BB16: =IF(AZ16=2,G16,0) -> 0 | BC16: =IF(AZ16=3,G16,0) -> 0 | BD16: =IF(AZ16=4,G16,0) -> 0 | BE16: =IF(AZ16=5,G16,0) -> 0 | CA16: 1 | CB16: 1
C17: Součástí položky je i očištění stávající dlažby a manipulace s dlažbou v rámci staveniště. | L17: Součástí položky je i očištění stávající dlažby a manipulace s dlažbou v rámci staveniště. | O17: 3
C18: Výšková úprava ZD u vstupů do čp.1449 a 1450:2,00*2 | E18: 4 | M18: Výšková úprava ZD u vstupů do čp.1449 a 1450:2,00*2
B19: Celkem za | C19: 5 Komunikace | G19: =SUM(G7:G18) -> 0 | I19: =SUM(I7:I18) -> 58.8506 | K19: =SUM(K7:K18) -> 0 | O19: 4 | BA19: =SUM(BA7:BA18) -> 0 | BB19: =SUM(BB7:BB18) -> 0 | BC19: =SUM(BC7:BC18) -> 0 | BD19: =SUM(BD7:BD18) -> 0 | BE19: =SUM(BE7:BE18) -> 0
A20: Díl: | B20: 8 | C20: Trubní vedení | O20: 1
A21: 5 | B21: 899331111R00 | C21: Výšková úprava vstupu do 20 cm, zvýšení poklopu | D21: kus | E21: 3 | G21: =E21*F21 -> 0 | H21: 0.43094 | I21: =E21*H21 -> 1.29282 | J21: 0 | K21: =E21*J21 -> 0 | O21: 2 | AA21: 1 | AB21: 1 | AC21: 1 | AZ21: 1 | BA21: =IF(AZ21=1,G21,0) -> 0 | BB21: =IF(AZ21=2,G21,0) -> 0 | BC21: =IF(AZ21=3,G21,0) -> 0 | BD21: =IF(AZ21=4,G21,0) -> 0 | BE21: =IF(AZ21=5,G21,0) -> 0 | CA21: 1 | CB21: 1
B22: Celkem za | C22: 8 Trubní vedení | G22: =SUM(G20:G21) -> 0 | I22: =SUM(I20:I21) -> 1.29282 | K22: =SUM(K20:K21) -> 0 | O22: 4 | BA22: =SUM(BA20:BA21) -> 0 | BB22: =SUM(BB20:BB21) -> 0 | BC22: =SUM(BC20:BC21) -> 0 | BD22: =SUM(BD20:BD21) -> 0 | BE22: =SUM(BE20:BE21) -> 0
A23: Díl: | B23: 93 | C23: Dokončovací práce inženýrských staveb | O23: 1
A24: 6 | B24: 938908411RRR | C24: Očištění povrchu krytu omytím | D24: m2 | E24: 320 | G24: =E24*F24 -> 0 | H24: 1e-05 | I24: =E24*H24 -> 0.0032 | J24: 0 | K24: =E24*J24 -> 0 | O24: 2 | AA24: 1 | AB24: 1 | AC24: 1 | AZ24: 1 | BA24: =IF(AZ24=1,G24,0) -> 0 | BB24: =IF(AZ24=2,G24,0) -> 0 | BC24: =IF(AZ24=3,G24,0) -> 0 | BD24: =IF(AZ24=4,G24,0) -> 0 | BE24: =IF(AZ24=5,G24,0) -> 0 | CA24: 1 | CB24: 1
C25: Plocha komunikace:300,00 | E25: 300 | M25: Plocha komunikace:300,00
C26: Rozšíření (náběh) u parkoviště "UNIVER":20,00 | E26: 20 | M26: Rozšíření (náběh) u parkoviště "UNIVER":20,00
A27: 7 | B27: 938909311R00 | C27: Odstranění nánosu z povrchu živičného nebo beton. | D27: m2 | E27: 320 | G27: =E27*F27 -> 0 | H27: 0 | I27: =E27*H27 -> 0 | J27: 0 | K27: =E27*J27 -> 0 | O27: 2 | AA27: 1 | AB27: 1 | AC27: 1 | AZ27: 1 | BA27: =IF(AZ27=1,G27,0) -> 0 | BB27: =IF(AZ27=2,G27,0) -> 0 | BC27: =IF(AZ27=3,G27,0) -> 0 | BD27: =IF(AZ27=4,G27,0) -> 0 | BE27: =IF(AZ27=5,G27,0) -> 0 | CA27: 1 | CB27: 1
C28: Plocha komunikace:300,00 | E28: 300 | M28: Plocha komunikace:300,00
C29: Rozšíření (náběh) u parkoviště "UNIVER":20,00 | E29: 20 | M29: Rozšíření (náběh) u parkoviště "UNIVER":20,00
B30: Celkem za | C30: 93 Dokončovací práce inženýrských staveb | G30: =SUM(G23:G29) -> 0 | I30: =SUM(I23:I29) -> 0.0032 | K30: =SUM(K23:K29) -> 0 | O30: 4 | BA30: =SUM(BA23:BA29) -> 0 | BB30: =SUM(BB23:BB29) -> 0 | BC30: =SUM(BC23:BC29) -> 0 | BD30: =SUM(BD23:BD29) -> 0 | BE30: =SUM(BE23:BE29) -> 0
A31: Díl: | B31: 99 | C31: Staveništní přesun hmot | O31: 1
A32: 8 | B32: 998225111R00 | C32: Přesun hmot, pozemní komunikace, kryt živičný | D32: t | E32: 60.14662 | G32: =E32*F32 -> 0 | H32: 0 | I32: =E32*H32 -> 0 | K32: =E32*J32 -> 0 | O32: 2 | AA32: 7 | AB32: 1 | AC32: 2 | AZ32: 1 | BA32: =IF(AZ32=1,G32,0) -> 0 | BB32: =IF(AZ32=2,G32,0) -> 0 | BC32: =IF(AZ32=3,G32,0) -> 0 | BD32: =IF(AZ32=4,G32,0) -> 0 | BE32: =IF(AZ32=5,G32,0) -> 0 | CA32: 7 | CB32: 1
B33: Celkem za | C33: 99 Staveništní přesun hmot | G33: =SUM(G31:G32) -> 0 | I33: =SUM(I31:I32) -> 0 | K33: =SUM(K31:K32) -> 0 | O33: 4 | BA33: =SUM(BA31:BA32) -> 0 | BB33: =SUM(BB31:BB32) -> 0 | BC33: =SUM(BC31:BC32) -> 0 | BD33: =SUM(BD31:BD32) -> 0 | BE33: =SUM(BE31:BE32) -> 0

Sheet 12 338112 KL
A1: POLOŽKOVÝ ROZPOČET
A2: Rozpočet | C2: 3381/12 | D2: Vesecko - Asfaltové plochy | F2: JKSO | G2: 822.29
A4: Objekt | F4: SKP
A5: 12 | C5: Vesecko - Asfaltové plochy na ppč. 698/33 | F5: Měrná jednotka | G5: m2
A6: Stavba | F6: Počet jednotek | G6: 0
A7: 3381 | C7: Turnov-Opravy místních komunikací a chodníků 2024 | F7: Náklady na m.j. | G7: =IF(G6=0,,ROUND((F30+F32)/G6,1)) -> 0
A8: Projektant | F8: Typ rozpočtu
A9: Zpracovatel projektu
A10: Objednatel | C10: Město TURNOV
A11: Dodavatel | C11: . | F11: Zakázkové číslo
A12: Rozpočtoval | F12: Počet listů
A13: ROZPOČTOVÉ NÁKLADY
A14: Základní rozpočtové náklady | D14: Ostatní rozpočtové náklady
B15: HSV celkem | C15: ='12 338112 Rek'!E11 -> 0 | D15: ='12 338112 Rek'!A16 -> Zařízení staveniště | G15: ='12 338112 Rek'!I16 -> 0
A16: Z | B16: PSV celkem | C16: ='12 338112 Rek'!F11 -> 0 | D16: ='12 338112 Rek'!A17 -> Kompletační činnost (IČD) | G16: ='12 338112 Rek'!I17 -> 0
A17: R | B17: M práce celkem | C17: ='12 338112 Rek'!H11 -> 0 | D17: ='12 338112 Rek'!A18 -> Vytýčení stavby a podz. inženýrských sítí | G17: ='12 338112 Rek'!I18 -> 0
A18: N | B18: M dodávky celkem | C18: ='12 338112 Rek'!G11 -> 0 | D18: ='12 338112 Rek'!A19 -> Dokumentace skutečného provedení | G18: ='12 338112 Rek'!I19 -> 0
A19: ZRN celkem | C19: =SUM(C15:C18) -> 0 | D19: ='12 338112 Rek'!A20 -> Geodetické zaměření stavby | G19: ='12 338112 Rek'!I20 -> 0
D20: ='12 338112 Rek'!A21 -> DIO | G20: ='12 338112 Rek'!I21 -> 0
A21: HZS | C21: ='12 338112 Rek'!I11 -> 0
A22: ZRN+HZS | C22: =C19+C21 -> 0
A23: ZRN+ost.náklady+HZS | C23: =C22+G23 -> 0 | D23: Ostatní náklady celkem | G23: ='12 338112 Rek'!H22 -> 0
A24: Vypracoval | D24: Za zhotovitele | F24: Za objednatele
A25: Jméno : | D25: Jméno : | F25: Jméno :
A26: Datum : | D26: Datum : | F26: Datum :
A28: Podpis : | D28: Podpis: | F28: Podpis:
A30: Základ pro DPH | C30: 21 | D30: % | F30: =C23-F32 -> 0
A31: DPH | C31: =C30 -> 21 | D31: % | F31: =ROUND(PRODUCT(F30,C31/100),0) -> 0
A32: Základ pro DPH | C32: 0 | D32: % | F32: 0
A33: DPH | C33: =C32 -> 0 | D33: % | F33: =ROUND(PRODUCT(F32,C33/100),0) -> 0
A34: CENA ZA OBJEKT CELKEM | F34: =ROUND(SUM(F30:F33),0) -> 0
A36: Poznámka :

Sheet 12 338112 Rek
A1: Stavba : | C1: 3381 Turnov-Opravy místních komunikací a chodníků 2024 | G1: Rozpočet : | H1: 3381/12
A2: Objekt : | C2: 12 Vesecko - Asfaltové plochy na ppč. 698/33 | G2: Vesecko - Asfaltové plochy
A4: REKAPITULACE STAVEBNÍCH DÍLŮ
B6: Stavební díl | E6: HSV | F6: PSV | G6: Dodávka | H6: Montáž | I6: HZS
A7: ='12 338112 Pol'!B7 -> 1 | B7: ='12 338112 Pol'!C7 -> Zemní práce | E7: ='12 338112 Pol'!BA13 -> 0 | F7: ='12 338112 Pol'!BB13 -> 0 | G7: ='12 338112 Pol'!BC13 -> 0 | H7: ='12 338112 Pol'!BD13 -> 0 | I7: ='12 338112 Pol'!BE13 -> 0
A8: ='12 338112 Pol'!B14 -> 5 | B8: ='12 338112 Pol'!C14 -> Komunikace | E8: ='12 338112 Pol'!BA21 -> 0 | F8: ='12 338112 Pol'!BB21 -> 0 | G8: ='12 338112 Pol'!BC21 -> 0 | H8: ='12 338112 Pol'!BD21 -> 0 | I8: ='12 338112 Pol'!BE21 -> 0
A9: ='12 338112 Pol'!B22 -> 91 | B9: ='12 338112 Pol'!C22 -> Doplňující práce na komunikaci | E9: ='12 338112 Pol'!BA24 -> 0 | F9: ='12 338112 Pol'!BB24 -> 0 | G9: ='12 338112 Pol'!BC24 -> 0 | H9: ='12 338112 Pol'!BD24 -> 0 | I9: ='12 338112 Pol'!BE24 -> 0
A10: ='12 338112 Pol'!B25 -> 99 | B10: ='12 338112 Pol'!C25 -> Staveništní přesun hmot | E10: ='12 338112 Pol'!BA27 -> 0 | F10: ='12 338112 Pol'!BB27 -> 0 | G10: ='12 338112 Pol'!BC27 -> 0 | H10: ='12 338112 Pol'!BD27 -> 0 | I10: ='12 338112 Pol'!BE27 -> 0
B11: CELKEM OBJEKT | E11: =SUM(E7:E10) -> 0 | F11: =SUM(F7:F10) -> 0 | G11: =SUM(G7:G10) -> 0 | H11: =SUM(H7:H10) -> 0 | I11: =SUM(I7:I10) -> 0
A13: VEDLEJŠÍ ROZPOČTOVÉ NÁKLADY
A15: Název VRN | E15: Kč | I15: Kč
A16: Zařízení staveniště | E16: 0 | I16: =E16+F16*G16/100 -> 0 | BA16: 2
A17: Kompletační činnost (IČD) | E17: 0 | I17: 0 | BA17: 2
A18: Vytýčení stavby a podz. inženýrských sítí | E18: 0 | I18: 0 | BA18: 0
A19: Dokumentace skutečného provedení | E19: 0 | I19: 0 | BA19: 0
A20: Geodetické zaměření stavby | E20: 0 | I20: 0 | BA20: 0
A21: DIO | E21: 0 | I21: 0 | BA21: 0
B22: CELKEM VRN | H22: =SUM(I16:I21) -> 0

Sheet 12 338112 Pol
A1: Položkový rozpočet
A3: Stavba : | C3: 3381 Turnov-Opravy místních komunikací a chodníků 2024 | E3: Rozpočet: | F3: ='12 338112 Rek'!H1 -> 3381/12
A4: Objekt : | C4: 12 Vesecko - Asfaltové plochy na ppč. 698/33 | E4: ='12 338112 Rek'!G2 -> Vesecko - Asfaltové plochy
A6: P.č. | B6: Číslo položky | C6: Název položky | D6: MJ | E6: množství | F6: cena / MJ | G6: celkem (Kč) | H6: Jednotková hmotnost | I6: Celková hmotnost | J6: Jednotková dem.hmot. | K6: Celková dem.hmot.
A7: Díl: | B7: 1 | C7: Zemní práce | O7: 1
A8: 1 | B8: 113151213R00 | C8: Fréz.živič.krytu nad 500 m2, bez překážek, tl.4 cm | D8: m2 | E8: 700 | G8: =E8*F8 -> 0 | H8: 0 | I8: =E8*H8 -> 0 | J8: -0.088 | K8: =E8*J8 -> -61.6 | O8: 2 | AA8: 1 | AB8: 1 | AC8: 1 | AZ8: 1 | BA8: =IF(AZ8=1,G8,0) -> 0 | BB8: =IF(AZ8=2,G8,0) -> 0 | BC8: =IF(AZ8=3,G8,0) -> 0 | BD8: =IF(AZ8=4,G8,0) -> 0 | BE8: =IF(AZ8=5,G8,0) -> 0 | CA8: 1 | CB8: 1
C9: Plocha před halou:700,00 | E9: 700 | M9: Plocha před halou:700,00
A10: 2 | B10: 979082113RSZ | C10: Vodorovná doprava suti po suchu na skládku zhotovitele | D10: t | E10: 61.6 | G10: =E10*F10 -> 0 | H10: 0 | I10: =E10*H10 -> 0 | J10: 0 | K10: =E10*J10 -> 0 | O10: 2 | AA10: 1 | AB10: 1 | AC10: 1 | AZ10: 1 | BA10: =IF(AZ10=1,G10,0) -> 0 | BB10: =IF(AZ10=2,G10,0) -> 0 | BC10: =IF(AZ10=3,G10,0) -> 0 | BD10: =IF(AZ10=4,G10,0) -> 0 | BE10: =IF(AZ10=5,G10,0) -> 0 | CA10: 1 | CB10: 1
A11: 3 | B11: 979999995R00 | C11: Poplatek za reciklaci asfaltu, kusovost do 1600cm2 skupina 170302 | D11: t | E11: 61.6 | G11: =E11*F11 -> 0 | H11: 0 | I11: =E11*H11 -> 0 | J11: 0 | K11: =E11*J11 -> 0 | O11: 2 | AA11: 1 | AB11: 1 | AC11: 1 | AZ11: 1 | BA11: =IF(AZ11=1,G11,0) -> 0 | BB11: =IF(AZ11=2,G11,0) -> 0 | BC11: =IF(AZ11=3,G11,0) -> 0 | BD11: =IF(AZ11=4,G11,0) -> 0 | BE11: =IF(AZ11=5,G11,0) -> 0 | CA11: 1 | CB11: 1
C12: Položka je určena pro suť o velikosti kusu do 30x30 cm (technologický materiál určený k recyklaci). | L12: Položka je určena pro suť o velikosti kusu do 30x30 cm (technologický materiál určený k recyklaci). | O12: 3
B13: Celkem za | C13: 1 Zemní práce | G13: =SUM(G7:G12) -> 0 | I13: =SUM(I7:I12) -> 0 | K13: =SUM(K7:K12) -> -61.6 | O13: 4 | BA13: =SUM(BA7:BA12) -> 0 | BB13: =SUM(BB7:BB12) -> 0 | BC13: =SUM(BC7:BC12) -> 0 | BD13: =SUM(BD7:BD12) -> 0 | BE13: =SUM(BE7:BE12) -> 0
A14: Díl: | B14: 5 | C14: Komunikace | O14: 1
A15: 4 | B15: 572713112R00 | C15: Vyrovnání povrchu krytů kamen. obaleným asfaltem | D15: t | E15: 48.125 | G15: =E15*F15 -> 0 | H15: 1 | I15: =E15*H15 -> 48.125 | J15: 0 | K15: =E15*J15 -> 0 | O15: 2 | AA15: 1 | AB15: 1 | AC15: 1 | AZ15: 1 | BA15: =IF(AZ15=1,G15,0) -> 0 | BB15: =IF(AZ15=2,G15,0) -> 0 | BC15: =IF(AZ15=3,G15,0) -> 0 | BD15: =IF(AZ15=4,G15,0) -> 0 | BE15: =IF(AZ15=5,G15,0) -> 0 | CA15: 1 | CB15: 1
C16: Plocha před halou:700,00*0,05/2*2,5*1,1 | E16: 48.125 | M16: Plocha před halou:700,00*0,05/2*2,5*1,1
A17: 5 | B17: 573231125R00 | C17: Postřik spojovací z KAE, množ. zbyt.asf. 0,5 kg/m2 | D17: m2 | E17: 700 | G17: =E17*F17 -> 0 | H17: 0.00071 | I17: =E17*H17 -> 0.497 | J17: 0 | K17: =E17*J17 -> 0 | O17: 2 | AA17: 1 | AB17: 1 | AC17: 1 | AZ17: 1 | BA17: =IF(AZ17=1,G17,0) -> 0 | BB17: =IF(AZ17=2,G17,0) -> 0 | BC17: =IF(AZ17=3,G17,0) -> 0 | BD17: =IF(AZ17=4,G17,0) -> 0 | BE17: =IF(AZ17=5,G17,0) -> 0 | CA17: 1 | CB17: 1
C18: Plocha před halou:700,00 | E18: 700 | M18: Plocha před halou:700,00
A19: 6 | B19: 577142112RT2 | C19: Beton asfaltový ACO 11+ obrusný nad 3 m, tl.5 cm plochy 201-1000 m2 | D19: m2 | E19: 700 | G19: =E19*F19 -> 0 | H19: 0.12966 | I19: =E19*H19 -> 90.762 | J19: 0 | K19: =E19*J19 -> 0 | O19: 2 | AA19: 1 | AB19: 1 | AC19: 1 | AZ19: 1 | BA19: =IF(AZ19=1,G19,0) -> 0 | BB19: =IF(AZ19=2,G19,0) -> 0 | BC19: =IF(AZ19=3,G19,0) -> 0 | BD19: =IF(AZ19=4,G19,0) -> 0 | BE19: =IF(AZ19=5,G19,0) -> 0 | CA19: 1 | CB19: 1
C20: Plocha před halou:700,00 | E20: 700 | M20: Plocha před halou:700,00
B21: Celkem za | C21: 5 Komunikace | G21: =SUM(G14:G20) -> 0 | I21: =SUM(I14:I20) -> 139.384 | K21: =SUM(K14:K20) -> 0 | O21: 4 | BA21: =SUM(BA14:BA20) -> 0 | BB21: =SUM(BB14:BB20) -> 0 | BC21: =SUM(BC14:BC20) -> 0 | BD21: =SUM(BD14:BD20) -> 0 | BE21: =SUM(BE14:BE20) -> 0
A22: Díl: | B22: 91 | C22: Doplňující práce na komunikaci | O22: 1
A23: 7 | B23: 919731121R00 | C23: Zarovnání styčné plochy živičné tl. do 5 cm | D23: m | E23: 150 | G23: =E23*F23 -> 0 | H23: 0 | I23: =E23*H23 -> 0 | J23: 0 | K23: =E23*J23 -> 0 | O23: 2 | AA23: 1 | AB23: 1 | AC23: 1 | AZ23: 1 | BA23: =IF(AZ23=1,G23,0) -> 0 | BB23: =IF(AZ23=2,G23,0) -> 0 | BC23: =IF(AZ23=3,G23,0) -> 0 | BD23: =IF(AZ23=4,G23,0) -> 0 | BE23: =IF(AZ23=5,G23,0) -> 0 | CA23: 1 | CB23: 1
B24: Celkem za | C24: 91 Doplňující práce na komunikaci | G24: =SUM(G22:G23) -> 0 | I24: =SUM(I22:I23) -> 0 | K24: =SUM(K22:K23) -> 0 | O24: 4 | BA24: =SUM(BA22:BA23) -> 0 | BB24: =SUM(BB22:BB23) -> 0 | BC24: =SUM(BC22:BC23) -> 0 | BD24: =SUM(BD22:BD23) -> 0 | BE24: =SUM(BE22:BE23) -> 0
A25: Díl: | B25: 99 | C25: Staveništní přesun hmot | O25: 1
A26: 8 | B26: 998225111R00 | C26: Přesun hmot, pozemní komunikace, kryt živičný | D26: t | E26: 139.384 | G26: =E26*F26 -> 0 | H26: 0 | I26: =E26*H26 -> 0 | K26: =E26*J26 -> 0 | O26: 2 | AA26: 7 | AB26: 1 | AC26: 2 | AZ26: 1 | BA26: =IF(AZ26=1,G26,0) -> 0 | BB26: =IF(AZ26=2,G26,0) -> 0 | BC26: =IF(AZ26=3,G26,0) -> 0 | BD26: =IF(AZ26=4,G26,0) -> 0 | BE26: =IF(AZ26=5,G26,0) -> 0 | CA26: 7 | CB26: 1
B27: Celkem za | C27: 99 Staveništní přesun hmot | G27: =SUM(G25:G26) -> 0 | I27: =SUM(I25:I26) -> 0 | K27: =SUM(K25:K26) -> 0 | O27: 4 | BA27: =SUM(BA25:BA26) -> 0 | BB27: =SUM(BB25:BB26) -> 0 | BC27: =SUM(BC25:BC26) -> 0 | BD27: =SUM(BD25:BD26) -> 0 | BE27: =SUM(BE25:BE26) -> 0

Sheet 13 338113 KL
A1: POLOŽKOVÝ ROZPOČET
A2: Rozpočet | C2: 3381/13 | D2: Oprava MK Družstevní ul. | F2: JKSO | G2: 822.27
A4: Objekt | F4: SKP
A5: 13 | C5: Oprava MK Družstevní ul. | F5: Měrná jednotka | G5: m2
A6: Stavba | F6: Počet jednotek | G6: 0
A7: 3381 | C7: Turnov-Opravy místních komunikací a chodníků 2024 | F7: Náklady na m.j. | G7: =IF(G6=0,,ROUND((F30+F32)/G6,1)) -> 0
A8: Projektant | F8: Typ rozpočtu
A9: Zpracovatel projektu
A10: Objednatel | C10: Město TURNOV
A11: Dodavatel | C11: . | F11: Zakázkové číslo
A12: Rozpočtoval | F12: Počet listů
A13: ROZPOČTOVÉ NÁKLADY
A14: Základní rozpočtové náklady | D14: Ostatní rozpočtové náklady
B15: HSV celkem | C15: ='13 338113 Rek'!E14 -> 0 | D15: ='13 338113 Rek'!A19 -> Zařízení staveniště | G15: ='13 338113 Rek'!I19 -> 0
A16: Z | B16: PSV celkem | C16: ='13 338113 Rek'!F14 -> 0 | D16: ='13 338113 Rek'!A20 -> Kompletační činnost (IČD) | G16: ='13 338113 Rek'!I20 -> 0
A17: R | B17: M práce celkem | C17: ='13 338113 Rek'!H14 -> 0 | D17: ='13 338113 Rek'!A21 -> Vytýčení stavby a podz. inženýrských sítí | G17: ='13 338113 Rek'!I21 -> 0
A18: N | B18: M dodávky celkem | C18: ='13 338113 Rek'!G14 -> 0 | D18: ='13 338113 Rek'!A22 -> Dokumentace skutečného provedení | G18: ='13 338113 Rek'!I22 -> 0
A19: ZRN celkem | C19: =SUM(C15:C18) -> 0 | D19: ='13 338113 Rek'!A23 -> Geodetické zaměření stavby | G19: ='13 338113 Rek'!I23 -> 0
D20: ='13 338113 Rek'!A24 -> DIO | G20: ='13 338113 Rek'!I24 -> 0
A21: HZS | C21: ='13 338113 Rek'!I14 -> 0
A22: ZRN+HZS | C22: =C19+C21 -> 0
A23: ZRN+ost.náklady+HZS | C23: =C22+G23 -> 0 | D23: Ostatní náklady celkem | G23: ='13 338113 Rek'!H25 -> 0
A24: Vypracoval | D24: Za zhotovitele | F24: Za objednatele
A25: Jméno : | D25: Jméno : | F25: Jméno :
A26: Datum : | D26: Datum : | F26: Datum :
A28: Podpis : | D28: Podpis: | F28: Podpis:
A30: Základ pro DPH | C30: 21 | D30: % | F30: =C23-F32 -> 0
A31: DPH | C31: =C30 -> 21 | D31: % | F31: =ROUND(PRODUCT(F30,C31/100),0) -> 0
A32: Základ pro DPH | C32: 0 | D32: % | F32: 0
A33: DPH | C33: =C32 -> 0 | D33: % | F33: =ROUND(PRODUCT(F32,C33/100),0) -> 0
A34: CENA ZA OBJEKT CELKEM | F34: =ROUND(SUM(F30:F33),0) -> 0
A36: Poznámka :

Sheet 13 338113 Rek
A1: Stavba : | C1: 3381 Turnov-Opravy místních komunikací a chodníků 2024 | G1: Rozpočet : | H1: 3381/13
A2: Objekt : | C2: 13 Oprava MK Družstevní ul. | G2: Oprava MK Družstevní ul.
A4: REKAPITULACE STAVEBNÍCH DÍLŮ
B6: Stavební díl | E6: HSV | F6: PSV | G6: Dodávka | H6: Montáž | I6: HZS
A7: ='13 338113 Pol'!B7 -> 1 | B7: ='13 338113 Pol'!C7 -> Zemní práce | E7: ='13 338113 Pol'!BA40 -> 0 | F7: ='13 338113 Pol'!BB40 -> 0 | G7: ='13 338113 Pol'!BC40 -> 0 | H7: ='13 338113 Pol'!BD40 -> 0 | I7: ='13 338113 Pol'!BE40 -> 0
A8: ='13 338113 Pol'!B41 -> 2 | B8: ='13 338113 Pol'!C41 -> Základy a zvláštní zakládání | E8: ='13 338113 Pol'!BA45 -> 0 | F8: ='13 338113 Pol'!BB45 -> 0 | G8: ='13 338113 Pol'!BC45 -> 0 | H8: ='13 338113 Pol'!BD45 -> 0 | I8: ='13 338113 Pol'!BE45 -> 0
A9: ='13 338113 Pol'!B46 -> 5 | B9: ='13 338113 Pol'!C46 -> Komunikace | E9: ='13 338113 Pol'!BA85 -> 0 | F9: ='13 338113 Pol'!BB85 -> 0 | G9: ='13 338113 Pol'!BC85 -> 0 | H9: ='13 338113 Pol'!BD85 -> 0 | I9: ='13 338113 Pol'!BE85 -> 0
A10: ='13 338113 Pol'!B86 -> 63 | B10: ='13 338113 Pol'!C86 -> Podlahy a podlahové konstrukce | E10: ='13 338113 Pol'!BA89 -> 0 | F10: ='13 338113 Pol'!BB89 -> 0 | G10: ='13 338113 Pol'!BC89 -> 0 | H10: ='13 338113 Pol'!BD89 -> 0 | I10: ='13 338113 Pol'!BE89 -> 0
A11: ='13 338113 Pol'!B90 -> 8 | B11: ='13 338113 Pol'!C90 -> Trubní vedení | E11: ='13 338113 Pol'!BA92 -> 0 | F11: ='13 338113 Pol'!BB92 -> 0 | G11: ='13 338113 Pol'!BC92 -> 0 | H11: ='13 338113 Pol'!BD92 -> 0 | I11: ='13 338113 Pol'!BE92 -> 0
A12: ='13 338113 Pol'!B93 -> 91 | B12: ='13 338113 Pol'!C93 -> Doplňující práce na komunikaci | E12: ='13 338113 Pol'!BA109 -> 0 | F12: ='13 338113 Pol'!BB109 -> 0 | G12: ='13 338113 Pol'!BC109 -> 0 | H12: ='13 338113 Pol'!BD109 -> 0 | I12: ='13 338113 Pol'!BE109 -> 0
A13: ='13 338113 Pol'!B110 -> 99 | B13: ='13 338113 Pol'!C110 -> Staveništní přesun hmot | E13: ='13 338113 Pol'!BA112 -> 0 | F13: ='13 338113 Pol'!BB112 -> 0 | G13: ='13 338113 Pol'!BC112 -> 0 | H13: ='13 338113 Pol'!BD112 -> 0 | I13: ='13 338113 Pol'!BE112 -> 0
B14: CELKEM OBJEKT | E14: =SUM(E7:E13) -> 0 | F14: =SUM(F7:F13) -> 0 | G14: =SUM(G7:G13) -> 0 | H14: =SUM(H7:H13) -> 0 | I14: =SUM(I7:I13) -> 0
A16: VEDLEJŠÍ ROZPOČTOVÉ NÁKLADY
A18: Název VRN | E18: Kč | I18: Kč
A19: Zařízení staveniště | E19: 0 | I19: =E19+F19*G19/100 -> 0 | BA19: 2
A20: Kompletační činnost (IČD) | E20: 0 | I20: 0 | BA20: 2
A21: Vytýčení stavby a podz. inženýrských sítí | E21: 0 | I21: 0 | BA21: 0
A22: Dokumentace skutečného provedení | E22: 0 | I22: 0 | BA22: 0
A23: Geodetické zaměření stavby | E23: 0 | I23: 0 | BA23: 0
A24: DIO | E24: 0 | I24: 0 | BA24: 0
B25: CELKEM VRN | H25: =SUM(I19:I24) -> 0

Sheet 13 338113 Pol
A1: Položkový rozpočet
A3: Stavba : | C3: 3381 Turnov-Opravy místních komunikací a chodníků 2024 | E3: Rozpočet: | F3: ='13 338113 Rek'!H1 -> 3381/13
A4: Objekt : | C4: 13 Oprava MK Družstevní ul. | E4: ='13 338113 Rek'!G2 -> Oprava MK Družstevní ul.
A6: P.č. | B6: Číslo položky | C6: Název položky | D6: MJ | E6: množství | F6: cena / MJ | G6: celkem (Kč) | H6: Jednotková hmotnost | I6: Celková hmotnost | J6: Jednotková dem.hmot. | K6: Celková dem.hmot.
A7: Díl: | B7: 1 | C7: Zemní práce | O7: 1
A8: 1 | B8: 113106121R00 | C8: Rozebrání dlažeb z betonových dlaždic na sucho | D8: m2 | E8: 65 | G8: =E8*F8 -> 0 | H8: 0 | I8: =E8*H8 -> 0 | J8: -0.138 | K8: =E8*J8 -> -8.97 | O8: 2 | AA8: 1 | AB8: 1 | AC8: 1 | AZ8: 1 | BA8: =IF(AZ8=1,G8,0) -> 0 | BB8: =IF(AZ8=2,G8,0) -> 0 | BC8: =IF(AZ8=3,G8,0) -> 0 | BD8: =IF(AZ8=4,G8,0) -> 0 | BE8: =IF(AZ8=5,G8,0) -> 0 | CA8: 1 | CB8: 1
C9: Stávající chodník:65,00 | E9: 65 | M9: Stávající chodník:65,00
A10: 2 | B10: 113107615R00 | C10: Odstranění podkladu nad 50 m2,kam.drcené tl.15 cm | D10: m2 | E10: 330 | G10: =E10*F10 -> 0 | H10: 0 | I10: =E10*H10 -> 0 | J10: -0.33 | K10: =E10*J10 -> -108.9 | O10: 2 | AA10: 1 | AB10: 1 | AC10: 1 | AZ10: 1 | BA10: =IF(AZ10=1,G10,0) -> 0 | BB10: =IF(AZ10=2,G10,0) -> 0 | BC10: =IF(AZ10=3,G10,0) -> 0 | BD10: =IF(AZ10=4,G10,0) -> 0 | BE10: =IF(AZ10=5,G10,0) -> 0 | CA10: 1 | CB10: 1
C11: Stávající příjezdová komunikace:265,00 | E11: 265 | M11: Stávající příjezdová komunikace:265,00
C12: Stávající chodník:65,00 | E12: 65 | M12: Stávající chodník:65,00
A13: 3 | B13: 113108410R00 | C13: Odstranění asfaltové vrstvy pl.nad 50 m2, tl.10 cm | D13: m2 | E13: 265 | G13: =E13*F13 -> 0 | H13: 0 | I13: =E13*H13 -> 0 | J13: -0.22 | K13: =E13*J13 -> -58.3 | O13: 2 | AA13: 1 | AB13: 1 | AC13: 1 | AZ13: 1 | BA13: =IF(AZ13=1,G13,0) -> 0 | BB13: =IF(AZ13=2,G13,0) -> 0 | BC13: =IF(AZ13=3,G13,0) -> 0 | BD13: =IF(AZ13=4,G13,0) -> 0 | BE13: =IF(AZ13=5,G13,0) -> 0 | CA13: 1 | CB13: 1
C14: Stávající příjezdová komunikace:265,00 | E14: 265 | M14: Stávající příjezdová komunikace:265,00
A15: 4 | B15: 113202111R00 | C15: Vytrhání obrub obrubníků silničních | D15: m | E15: 102 | G15: =E15*F15 -> 0 | H15: 0 | I15: =E15*H15 -> 0 | J15: -0.27 | K15: =E15*J15 -> -27.54 | O15: 2 | AA15: 1 | AB15: 1 | AC15: 1 | AZ15: 1 | BA15: =IF(AZ15=1,G15,0) -> 0 | BB15: =IF(AZ15=2,G15,0) -> 0 | BC15: =IF(AZ15=3,G15,0) -> 0 | BD15: =IF(AZ15=4,G15,0) -> 0 | BE15: =IF(AZ15=5,G15,0) -> 0 | CA15: 1 | CB15: 1
C16: Podél stávající komunikace:102,00 | E16: 102 | M16: Podél stávající komunikace:102,00
A17: 5 | B17: 113204111R00 | C17: Vytrhání obrubníků zahradních | D17: m | E17: 50 | G17: =E17*F17 -> 0 | H17: 0 | I17: =E17*H17 -> 0 | J17: -0.125 | K17: =E17*J17 -> -6.25 | O17: 2 | AA17: 1 | AB17: 1 | AC17: 1 | AZ17: 1 | BA17: =IF(AZ17=1,G17,0) -> 0 | BB17: =IF(AZ17=2,G17,0) -> 0 | BC17: =IF(AZ17=3,G17,0) -> 0 | BD17: =IF(AZ17=4,G17,0) -> 0 | BE17: =IF(AZ17=5,G17,0) -> 0 | CA17: 1 | CB17: 1
C18: Podél stávajícího chodníku:50,00 | E18: 50 | M18: Podél stávajícího chodníku:50,00
A19: 6 | B19: 122202201R00 | C19: Odkopávky pro silnice v hor. 3 do 100 m3 | D19: m3 | E19: 91.92 | G19: =E19*F19 -> 0 | H19: 0 | I19: =E19*H19 -> 0 | J19: 0 | K19: =E19*J19 -> 0 | O19: 2 | AA19: 1 | AB19: 1 | AC19: 1 | AZ19: 1 | BA19: =IF(AZ19=1,G19,0) -> 0 | BB19: =IF(AZ19=2,G19,0) -> 0 | BC19: =IF(AZ19=3,G19,0) -> 0 | BD19: =IF(AZ19=4,G19,0) -> 0 | BE19: =IF(AZ19=5,G19,0) -> 0 | CA19: 1 | CB19: 1
C20: Odkopávky pro komunikaci, chodník a parkovací stání:91,92 | E20: 91.92 | M20: Odkopávky pro komunikaci, chodník a parkovací stání:91,92
A21: 7 | B21: 122202209R00 | C21: Příplatek za lepivost - odkop. pro silnice v hor.3 | D21: m3 | E21: 45.96 | G21: =E21*F21 -> 0 | H21: 0 | I21: =E21*H21 -> 0 | J21: 0 | K21: =E21*J21 -> 0 | O21: 2 | AA21: 1 | AB21: 1 | AC21: 1 | AZ21: 1 | BA21: =IF(AZ21=1,G21,0) -> 0 | BB21: =IF(AZ21=2,G21,0) -> 0 | BC21: =IF(AZ21=3,G21,0) -> 0 | BD21: =IF(AZ21=4,G21,0) -> 0 | BE21: =IF(AZ21=5,G21,0) -> 0 | CA21: 1 | CB21: 1
C22: Odkopávky pro komunikaci, chodník a parkovací stání:91,92*0,5 | E22: 45.96 | M22: Odkopávky pro komunikaci, chodník a parkovací stání:91,92*0,5
A23: 8 | B23: 162701105RSZ | C23: Vodorovné přemístění výkopku z hor.1-7 na skládku zhotovitele | D23: m3 | E23: 65 | G23: =E23*F23 -> 0 | H23: 0 | I23: =E23*H23 -> 0 | J23: 0 | K23: =E23*J23 -> 0 | O23: 2 | AA23: 1 | AB23: 1 | AC23: 1 | AZ23: 1 | BA23: =IF(AZ23=1,G23,0) -> 0 | BB23: =IF(AZ23=2,G23,0) -> 0 | BC23: =IF(AZ23=3,G23,0) -> 0 | BD23: =IF(AZ23=4,G23,0) -> 0 | BE23: =IF(AZ23=5,G23,0) -> 0 | CA23: 1 | CB23: 1
C24: Odkopávky mimo stávající komunikace a chodník:65,00 | E24: 65 | M24: Odkopávky mimo stávající komunikace a chodník:65,00
A25: 9 | B25: 181101102R00 | C25: Úprava pláně v zářezech v hor. 1-4, se zhutněním | D25: m2 | E25: 506 | G25: =E25*F25 -> 0 | H25: 0 | I25: =E25*H25 -> 0 | J25: 0 | K25: =E25*J25 -> 0 | O25: 2 | AA25: 1 | AB25: 1 | AC25: 1 | AZ25: 1 | BA25: =IF(AZ25=1,G25,0) -> 0 | BB25: =IF(AZ25=2,G25,0) -> 0 | BC25: =IF(AZ25=3,G25,0) -> 0 | BD25: =IF(AZ25=4,G25,0) -> 0 | BE25: =IF(AZ25=5,G25,0) -> 0 | CA25: 1 | CB25: 1
C26: Komunikace:250,00*1,1 | E26: 275 | M26: Komunikace:250,00*1,1
C27: Parkovací pruh:117,00*1,1 | E27: 128.7 | M27: Parkovací pruh:117,00*1,1
C28: Chodník:80,00*1,1 | E28: 88 | M28: Chodník:80,00*1,1
C29: Stání pro popelnice:13,00*1,1 | E29: 14.3 | M29: Stání pro popelnice:13,00*1,1
A30: 10 | B30: 181300012RAC | C30: Rozprostření ornice v rovině tloušťka 20 cm dovoz ornice ze vzdálenosti 5 km, osetí trávou | D30: m2 | E30: 38 | G30: =E30*F30 -> 0 | H30: 3e-05 | I30: =E30*H30 -> 0.00114 | J30: 0 | K30: =E30*J30 -> 0 | O30: 2 | AA30: 1 | AB30: 1 | AC30: 1 | AZ30: 1 | BA30: =IF(AZ30=1,G30,0) -> 0 | BB30: =IF(AZ30=2,G30,0) -> 0 | BC30: =IF(AZ30=3,G30,0) -> 0 | BD30: =IF(AZ30=4,G30,0) -> 0 | BE30: =IF(AZ30=5,G30,0) -> 0 | CA30: 1 | CB30: 1
C31: Včetně přesunu hmot dovoz ornice. | L31: Včetně přesunu hmot dovoz ornice. | O31: 3
C32: Zelené plochy:38,00 | E32: 38 | M32: Zelené plochy:38,00
A33: 11 | B33: 199000002R00 | C33: Poplatek za skládku horniny 1- 7 č. dle katal. odpadů 17 05 04 | D33: m3 | E33: 65 | G33: =E33*F33 -> 0 | H33: 0 | I33: =E33*H33 -> 0 | J33: 0 | K33: =E33*J33 -> 0 | O33: 2 | AA33: 1 | AB33: 1 | AC33: 1 | AZ33: 1 | BA33: =IF(AZ33=1,G33,0) -> 0 | BB33: =IF(AZ33=2,G33,0) -> 0 | BC33: =IF(AZ33=3,G33,0) -> 0 | BD33: =IF(AZ33=4,G33,0) -> 0 | BE33: =IF(AZ33=5,G33,0) -> 0 | CA33: 1 | CB33: 1
C34: Odkopávky mimo stávající komunikace a chodník:65,00 | E34: 65 | M34: Odkopávky mimo stávající komunikace a chodník:65,00
A35: 12 | B35: 979082113RSZ | C35: Vodorovná doprava suti po suchu na skládku zhotovitele | D35: t | E35: 209.96 | G35: =E35*F35 -> 0 | H35: 0 | I35: =E35*H35 -> 0 | J35: 0 | K35: =E35*J35 -> 0 | O35: 2 | AA35: 1 | AB35: 1 | AC35: 1 | AZ35: 1 | BA35: =IF(AZ35=1,G35,0) -> 0 | BB35: =IF(AZ35=2,G35,0) -> 0 | BC35: =IF(AZ35=3,G35,0) -> 0 | BD35: =IF(AZ35=4,G35,0) -> 0 | BE35: =IF(AZ35=5,G35,0) -> 0 | CA35: 1 | CB35: 1
A36: 13 | B36: 979089001R00 | C36: Poplatek za skládku stavební suti štěrky z komunikací, skupina odpadu 010408 | D36: t | E36: 108.9 | G36: =E36*F36 -> 0 | H36: 0 | I36: =E36*H36 -> 0 | J36: 0 | K36: =E36*J36 -> 0 | O36: 2 | AA36: 1 | AB36: 1 | AC36: 1 | AZ36: 1 | BA36: =IF(AZ36=1,G36,0) -> 0 | BB36: =IF(AZ36=2,G36,0) -> 0 | BC36: =IF(AZ36=3,G36,0) -> 0 | BD36: =IF(AZ36=4,G36,0) -> 0 | BE36: =IF(AZ36=5,G36,0) -> 0 | CA36: 1 | CB36: 1
A37: 14 | B37: 979990103R00 | C37: Poplatek za skládku stavební suti beton, skupina odpadu 170101 | D37: t | E37: 42.76 | G37: =E37*F37 -> 0 | H37: 0 | I37: =E37*H37 -> 0 | J37: 0 | K37: =E37*J37 -> 0 | O37: 2 | AA37: 1 | AB37: 1 | AC37: 1 | AZ37: 1 | BA37: =IF(AZ37=1,G37,0) -> 0 | BB37: =IF(AZ37=2,G37,0) -> 0 | BC37: =IF(AZ37=3,G37,0) -> 0 | BD37: =IF(AZ37=4,G37,0) -> 0 | BE37: =IF(AZ37=5,G37,0) -> 0 | CA37: 1 | CB37: 1
A38: 15 | B38: 979999995R00 | C38: Poplatek za reciklaci asfaltu, kusovost do 1600cm2 skupina 170302 | D38: t | E38: 58.3 | G38: =E38*F38 -> 0 | H38: 0 | I38: =E38*H38 -> 0 | J38: 0 | K38: =E38*J38 -> 0 | O38: 2 | AA38: 1 | AB38: 1 | AC38: 1 | AZ38: 1 | BA38: =IF(AZ38=1,G38,0) -> 0 | BB38: =IF(AZ38=2,G38,0) -> 0 | BC38: =IF(AZ38=3,G38,0) -> 0 | BD38: =IF(AZ38=4,G38,0) -> 0 | BE38: =IF(AZ38=5,G38,0) -> 0 | CA38: 1 | CB38: 1
C39: Položka je určena pro suť o velikosti kusu do 30x30 cm (technologický materiál určený k recyklaci) nebo frézovaný asfalt. | L39: Položka je určena pro suť o velikosti kusu do 30x30 cm (technologický materiál určený k recyklaci) nebo frézovaný asfalt. | O39: 3
B40: Celkem za | C40: 1 Zemní práce | G40: =SUM(G7:G39) -> 0 | I40: =SUM(I7:I39) -> 0.00114 | K40: =SUM(K7:K39) -> -209.96 | O40: 4 | BA40: =SUM(BA7:BA39) -> 0 | BB40: =SUM(BB7:BB39) -> 0 | BC40: =SUM(BC7:BC39) -> 0 | BD40: =SUM(BD7:BD39) -> 0 | BE40: =SUM(BE7:BE39) -> 0
A41: Díl: | B41: 2 | C41: Základy a zvláštní zakládání | O41: 1
A42: 16 | B42: 212810010RAC | C42: Trativody z PVC drenážních flexibilních trubek lože štěrkopísek a obsyp kamenivo, trubky d 100 mm | D42: m | E42: 55 | G42: =E42*F42 -> 0 | H42: 0.43651 | I42: =E42*H42 -> 24.00805 | J42: 0 | K42: =E42*J42 -> 0 | O42: 2 | AA42: 1 | AB42: 1 | AC42: 1 | AZ42: 1 | BA42: =IF(AZ42=1,G42,0) -> 0 | BB42: =IF(AZ42=2,G42,0) -> 0 | BC42: =IF(AZ42=3,G42,0) -> 0 | BD42: =IF(AZ42=4,G42,0) -> 0 | BE42: =IF(AZ42=5,G42,0) -> 0 | CA42: 1 | CB42: 1
C43: Součástí položky je i zaústění drenáže do stávající UV. | L43: Součástí položky je i zaústění drenáže do stávající UV. | O43: 3
C44: Drenáž DN100:55,00 | E44: 55 | M44: Drenáž DN100:55,00
B45: Celkem za | C45: 2 Základy a zvláštní zakládání | G45: =SUM(G41:G44) -> 0 | I45: =SUM(I41:I44) -> 24.00805 | K45: =SUM(K41:K44) -> 0 | O45: 4 | BA45: =SUM(BA41:BA44) -> 0 | BB45: =SUM(BB41:BB44) -> 0 | BC45: =SUM(BC41:BC44) -> 0 | BD45: =SUM(BD41:BD44) -> 0 | BE45: =SUM(BE41:BE44) -> 0
A46: Díl: | B46: 5 | C46: Komunikace | O46: 1
A47: 17 | B47: 564751111R00 | C47: Podklad z kameniva drceného vel.32-63 mm,tl. 15 cm | D47: m2 | E47: 117 | G47: =E47*F47 -> 0 | H47: 0.3225 | I47: =E47*H47 -> 37.7325 | J47: 0 | K47: =E47*J47 -> 0 | O47: 2 | AA47: 1 | AB47: 1 | AC47: 1 | AZ47: 1 | BA47: =IF(AZ47=1,G47,0) -> 0 | BB47: =IF(AZ47=2,G47,0) -> 0 | BC47: =IF(AZ47=3,G47,0) -> 0 | BD47: =IF(AZ47=4,G47,0) -> 0 | BE47: =IF(AZ47=5,G47,0) -> 0 | CA47: 1 | CB47: 1
C48: Parkovací pruh:117,00 | E48: 117 | M48: Parkovací pruh:117,00
A49: 18 | B49: 564841112RT4 | C49: Podklad ze štěrkodrti po zhutnění tloušťky 13 cm štěrkodrť frakce 0-63 mm | D49: m2 | E49: 13 | G49: =E49*F49 -> 0 | H49: 0.3276 | I49: =E49*H49 -> 4.2588 | J49: 0 | K49: =E49*J49 -> 0 | O49: 2 | AA49: 1 | AB49: 1 | AC49: 1 | AZ49: 1 | BA49: =IF(AZ49=1,G49,0) -> 0 | BB49: =IF(AZ49=2,G49,0) -> 0 | BC49: =IF(AZ49=3,G49,0) -> 0 | BD49: =IF(AZ49=4,G49,0) -> 0 | BE49: =IF(AZ49=5,G49,0) -> 0 | CA49: 1 | CB49: 1
C50: Stání pro popelnice:13,00 | E50: 13 | M50: Stání pro popelnice:13,00
A51: 19 | B51: 564841112RTX | C51: Podklad ze štěrkodrti po zhutnění tloušťky 13 cm štěrkodrť frakce 16-32 mm | D51: m2 | E51: 117 | G51: =E51*F51 -> 0 | H51: 0.3276 | I51: =E51*H51 -> 38.3292 | J51: 0 | K51: =E51*J51 -> 0 | O51: 2 | AA51: 1 | AB51: 1 | AC51: 1 | AZ51: 1 | BA51: =IF(AZ51=1,G51,0) -> 0 | BB51: =IF(AZ51=2,G51,0) -> 0 | BC51: =IF(AZ51=3,G51,0) -> 0 | BD51: =IF(AZ51=4,G51,0) -> 0 | BE51: =IF(AZ51=5,G51,0) -> 0 | CA51: 1 | CB51: 1
C52: Parkovací pruh:117,00 | E52: 117 | M52: Parkovací pruh:117,00
A53: 20 | B53: 564851111RT4 | C53: Podklad ze štěrkodrti po zhutnění tloušťky 15 cm štěrkodrť frakce 0-63 mm | D53: m2 | E53: 593 | G53: =E53*F53 -> 0 | H53: 0.378 | I53: =E53*H53 -> 224.154 | J53: 0 | K53: =E53*J53 -> 0 | O53: 2 | AA53: 1 | AB53: 1 | AC53: 1 | AZ53: 1 | BA53: =IF(AZ53=1,G53,0) -> 0 | BB53: =IF(AZ53=2,G53,0) -> 0 | BC53: =IF(AZ53=3,G53,0) -> 0 | BD53: =IF(AZ53=4,G53,0) -> 0 | BE53: =IF(AZ53=5,G53,0) -> 0 | CA53: 1 | CB53: 1
C54: Komunikace:250,00*2 | E54: 500 | M54: Komunikace:250,00*2
C55: Chodník:80,00 | E55: 80 | M55: Chodník:80,00
C56: Stání pro popelnice:13,00 | E56: 13 | M56: Stání pro popelnice:13,00
A57: 21 | B57: 565151211RT2 | C57: Podklad z obal kam.ACP 16+,nad 3 m,tl.7 cm plochy 201-1000 m2 | D57: m2 | E57: 250 | G57: =E57*F57 -> 0 | H57: 0.18463 | I57: =E57*H57 -> 46.1575 | J57: 0 | K57: =E57*J57 -> 0 | O57: 2 | AA57: 1 | AB57: 1 | AC57: 1 | AZ57: 1 | BA57: =IF(AZ57=1,G57,0) -> 0 | BB57: =IF(AZ57=2,G57,0) -> 0 | BC57: =IF(AZ57=3,G57,0) -> 0 | BD57: =IF(AZ57=4,G57,0) -> 0 | BE57: =IF(AZ57=5,G57,0) -> 0 | CA57: 1 | CB57: 1
C58: Komunikace:250,00 | E58: 250 | M58: Komunikace:250,00
A59: 22 | B59: 573111121R00 | C59: Postřik infiltr., množství zbytkov. poj. 0,60kg/m2 | D59: m2 | E59: 250 | G59: =E59*F59 -> 0 | H59: 0.00561 | I59: =E59*H59 -> 1.4025 | J59: 0 | K59: =E59*J59 -> 0 | O59: 2 | AA59: 1 | AB59: 1 | AC59: 1 | AZ59: 1 | BA59: =IF(AZ59=1,G59,0) -> 0 | BB59: =IF(AZ59=2,G59,0) -> 0 | BC59: =IF(AZ59=3,G59,0) -> 0 | BD59: =IF(AZ59=4,G59,0) -> 0 | BE59: =IF(AZ59=5,G59,0) -> 0 | CA59: 1 | CB59: 1
C60: Komunikace:250,00 | E60: 250 | M60: Komunikace:250,00
A61: 23 | B61: 573231125R00 | C61: Postřik spojovací z KAE množství zbytkového asfaltu 0,5 kg/m2 | D61: m2 | E61: 250 | G61: =E61*F61 -> 0 | H61: 0.0005 | I61: =E61*H61 -> 0.125 | J61: 0 | K61: =E61*J61 -> 0 | O61: 2 | AA61: 1 | AB61: 1 | AC61: 1 | AZ61: 1 | BA61: =IF(AZ61=1,G61,0) -> 0 | BB61: =IF(AZ61=2,G61,0) -> 0 | BC61: =IF(AZ61=3,G61,0) -> 0 | BD61: =IF(AZ61=4,G61,0) -> 0 | BE61: =IF(AZ61=5,G61,0) -> 0 | CA61: 1 | CB61: 1
C62: Příjezdová komunikace:250,00 | E62: 250 | M62: Příjezdová komunikace:250,00
A63: 24 | B63: 577132111RT2 | C63: Beton asfalt. ACO 11+ obrusný, š.nad 3 m, tl. 4 cm plochy 201-1000 m2 | D63: m2 | E63: 250 | G63: =E63*F63 -> 0 | H63: 0.10373 | I63: =E63*H63 -> 25.9325 | J63: 0 | K63: =E63*J63 -> 0 | O63: 2 | AA63: 1 | AB63: 1 | AC63: 1 | AZ63: 1 | BA63: =IF(AZ63=1,G63,0) -> 0 | BB63: =IF(AZ63=2,G63,0) -> 0 | BC63: =IF(AZ63=3,G63,0) -> 0 | BD63: =IF(AZ63=4,G63,0) -> 0 | BE63: =IF(AZ63=5,G63,0) -> 0 | CA63: 1 | CB63: 1
C64: Příjezdová komunikace:250,00 | E64: 250 | M64: Příjezdová komunikace:250,00
A65: 25 | B65: 596215021R00 | C65: Kladení zámkové dlažby tl. 6 cm do drtě tl. 4 cm | D65: m2 | E65: 80 | G65: =E65*F65 -> 0 | H65: 0.0739 | I65: =E65*H65 -> 5.912 | J65: 0 | K65: =E65*J65 -> 0 | O65: 2 | AA65: 1 | AB65: 1 | AC65: 1 | AZ65: 1 | BA65: =IF(AZ65=1,G65,0) -> 0 | BB65: =IF(AZ65=2,G65,0) -> 0 | BC65: =IF(AZ65=3,G65,0) -> 0 | BD65: =IF(AZ65=4,G65,0) -> 0 | BE65: =IF(AZ65=5,G65,0) -> 0 | CA65: 1 | CB65: 1
C66: Chodník:80,00 | E66: 80 | M66: Chodník:80,00
A67: 26 | B67: 596215041R00 | C67: Kladení zámkové dlažby tl. 8 cm do drtě tl. 5 cm | D67: m2 | E67: 130 | G67: =E67*F67 -> 0 | H67: 0.0928 | I67: =E67*H67 -> 12.064 | J67: 0 | K67: =E67*J67 -> 0 | O67: 2 | AA67: 1 | AB67: 1 | AC67: 1 | AZ67: 1 | BA67: =IF(AZ67=1,G67,0) -> 0 | BB67: =IF(AZ67=2,G67,0) -> 0 | BC67: =IF(AZ67=3,G67,0) -> 0 | BD67: =IF(AZ67=4,G67,0) -> 0 | BE67: =IF(AZ67=5,G67,0) -> 0 | CA67: 1 | CB67: 1
C68: Parkovací pruh:117,00 | E68: 117 | M68: Parkovací pruh:117,00
C69: Stání pro popelnice:13,00 | E69: 13 | M69: Stání pro popelnice:13,00
A70: 27 | B70: 596291111R00 | C70: Řezání zámkové dlažby tl. 60 mm | D70: m | E70: 20 | G70: =E70*F70 -> 0 | H70: 0.00033 | I70: =E70*H70 -> 0.0066 | J70: 0 | K70: =E70*J70 -> 0 | O70: 2 | AA70: 1 | AB70: 1 | AC70: 1 | AZ70: 1 | BA70: =IF(AZ70=1,G70,0) -> 0 | BB70: =IF(AZ70=2,G70,0) -> 0 | BC70: =IF(AZ70=3,G70,0) -> 0 | BD70: =IF(AZ70=4,G70,0) -> 0 | BE70: =IF(AZ70=5,G70,0) -> 0 | CA70: 1 | CB70: 1
C71: Chodník:80,00*0,25 | E71: 20 | M71: Chodník:80,00*0,25
A72: 28 | B72: 596291113R00 | C72: Řezání zámkové dlažby tl. 80 mm | D72: m | E72: 32.5 | G72: =E72*F72 -> 0 | H72: 0.00036 | I72: =E72*H72 -> 0.0117 | J72: 0 | K72: =E72*J72 -> 0 | O72: 2 | AA72: 1 | AB72: 1 | AC72: 1 | AZ72: 1 | BA72: =IF(AZ72=1,G72,0) -> 0 | BB72: =IF(AZ72=2,G72,0) -> 0 | BC72: =IF(AZ72=3,G72,0) -> 0 | BD72: =IF(AZ72=4,G72,0) -> 0 | BE72: =IF(AZ72=5,G72,0) -> 0 | CA72: 1 | CB72: 1
C73: Parkovací pruh:117,00*0,25 | E73: 29.25 | M73: Parkovací pruh:117,00*0,25
C74: Stání pro popelnice:13,00*0,25 | E74: 3.25 | M74: Stání pro popelnice:13,00*0,25
A75: 29 | B75: 592451151.R | C75: Dlažba vegetační přírodní 200/200/80 mm (např. QUADRO VEGETAČNÍ) | D75: m2 | E75: 119.34 | G75: =E75*F75 -> 0 | H75: 0.1525 | I75: =E75*H75 -> 18.19935 | K75: =E75*J75 -> 0 | O75: 2 | AA75: 3 | AB75: 1 | AC75: 592451151.R | AZ75: 1 | BA75: =IF(AZ75=1,G75,0) -> 0 | BB75: =IF(AZ75=2,G75,0) -> 0 | BC75: =IF(AZ75=3,G75,0) -> 0 | BD75: =IF(AZ75=4,G75,0) -> 0 | BE75: =IF(AZ75=5,G75,0) -> 0 | CA75: 3 | CB75: 1
C76: Parkovací pruh:117,00*1,02 | E76: 119.34 | M76: Parkovací pruh:117,00*1,02
A77: 30 | B77: 59245268.R | C77: Dlažba betonová skládaná přírodní 20x10x6 cm | D77: m2 | E77: 71.4 | G77: =E77*F77 -> 0 | H77: 0.137 | I77: =E77*H77 -> 9.7818 | K77: =E77*J77 -> 0 | O77: 2 | AA77: 3 | AB77: 1 | AC77: 59245268.R | AZ77: 1 | BA77: =IF(AZ77=1,G77,0) -> 0 | BB77: =IF(AZ77=2,G77,0) -> 0 | BC77: =IF(AZ77=3,G77,0) -> 0 | BD77: =IF(AZ77=4,G77,0) -> 0 | BE77: =IF(AZ77=5,G77,0) -> 0 | CA77: 3 | CB77: 1
C78: Chodník - základní tvarovka:70,00*1,02 | E78: 71.4 | M78: Chodník - základní tvarovka:70,00*1,02
A79: 31 | B79: 59245269.R | C79: Dlažba betonová skládaná přírodní 20x10x6 cm rovná hrana | D79: m2 | E79: 6.12 | G79: =E79*F79 -> 0 | H79: 0.137 | I79: =E79*H79 -> 0.83844 | K79: =E79*J79 -> 0 | O79: 2 | AA79: 3 | AB79: 1 | AC79: 59245269.R | AZ79: 1 | BA79: =IF(AZ79=1,G79,0) -> 0 | BB79: =IF(AZ79=2,G79,0) -> 0 | BC79: =IF(AZ79=3,G79,0) -> 0 | BD79: =IF(AZ79=4,G79,0) -> 0 | BE79: =IF(AZ79=5,G79,0) -> 0 | CA79: 3 | CB79: 1
C80: Chodník - základní tvarovka s rovnou hranou:6,00*1,02 | E80: 6.12 | M80: Chodník - základní tvarovka s rovnou hranou:6,00*1,02
A81: 32 | B81: 59245272.R | C81: Dlažba betonová skládaná hmatová bar. 20x10x6 cm | D81: m2 | E81: 4.08 | G81: =E81*F81 -> 0 | H81: 0.137 | I81: =E81*H81 -> 0.55896 | K81: =E81*J81 -> 0 | O81: 2 | AA81: 3 | AB81: 1 | AC81: 59245272.R | AZ81: 1 | BA81: =IF(AZ81=1,G81,0) -> 0 | BB81: =IF(AZ81=2,G81,0) -> 0 | BC81: =IF(AZ81=3,G81,0) -> 0 | BD81: =IF(AZ81=4,G81,0) -> 0 | BE81: =IF(AZ81=5,G81,0) -> 0 | CA81: 3 | CB81: 1
C82: Chodník - hmatová tvarovka:4,00*1,02 | E82: 4.08 | M82: Chodník - hmatová tvarovka:4,00*1,02
A83: 33 | B83: 59245278.R | C83: Dlažba betonová skládaná přírodní 20x10x8 cm | D83: m2 | E83: 13.26 | G83: =E83*F83 -> 0 | H83: 0.167 | I83: =E83*H83 -> 2.21442 | K83: =E83*J83 -> 0 | O83: 2 | AA83: 3 | AB83: 1 | AC83: 59245278.R | AZ83: 1 | BA83: =IF(AZ83=1,G83,0) -> 0 | BB83: =IF(AZ83=2,G83,0) -> 0 | BC83: =IF(AZ83=3,G83,0) -> 0 | BD83: =IF(AZ83=4,G83,0) -> 0 | BE83: =IF(AZ83=5,G83,0) -> 0 | CA83: 3 | CB83: 1
C84: Stání pro popelnice:13,00*1,02 | E84: 13.26 | M84: Stání pro popelnice:13,00*1,02
B85: Celkem za | C85: 5 Komunikace | G85: =SUM(G46:G84) -> 0 | I85: =SUM(I46:I84) -> 427.67927 | K85: =SUM(K46:K84) -> 0 | O85: 4 | BA85: =SUM(BA46:BA84) -> 0 | BB85: =SUM(BB46:BB84) -> 0 | BC85: =SUM(BC46:BC84) -> 0 | BD85: =SUM(BD46:BD84) -> 0 | BE85: =SUM(BE46:BE84) -> 0
A86: Díl: | B86: 63 | C86: Podlahy a podlahové konstrukce | O86: 1
A87: 34 | B87: 639571215R00 | C87: Kačírek pro okapový chodník tl. 150 mm | D87: m2 | E87: 8 | G87: =E87*F87 -> 0 | H87: 0.24 | I87: =E87*H87 -> 1.92 | J87: 0 | K87: =E87*J87 -> 0 | O87: 2 | AA87: 1 | AB87: 1 | AC87: 1 | AZ87: 1 | BA87: =IF(AZ87=1,G87,0) -> 0 | BB87: =IF(AZ87=2,G87,0) -> 0 | BC87: =IF(AZ87=3,G87,0) -> 0 | BD87: =IF(AZ87=4,G87,0) -> 0 | BE87: =IF(AZ87=5,G87,0) -> 0 | CA87: 1 | CB87: 1
C88: Kačírek podél objektu:40,00*0,20 | E88: 8 | M88: Kačírek podél objektu:40,00*0,20
B89: Celkem za | C89: 63 Podlahy a podlahové konstrukce | G89: =SUM(G86:G88) -> 0 | I89: =SUM(I86:I88) -> 1.92 | K89: =SUM(K86:K88) -> 0 | O89: 4 | BA89: =SUM(BA86:BA88) -> 0 | BB89: =SUM(BB86:BB88) -> 0 | BC89: =SUM(BC86:BC88) -> 0 | BD89: =SUM(BD86:BD88) -> 0 | BE89: =SUM(BE86:BE88) -> 0
A90: Díl: | B90: 8 | C90: Trubní vedení | O90: 1
A91: 35 | B91: 899231111R00 | C91: Výšková úprava vstupu do 20 cm, zvýšení mříže | D91: kus | E91: 2 | G91: =E91*F91 -> 0 | H91: 0.43382 | I91: =E91*H91 -> 0.86764 | J91: 0 | K91: =E91*J91 -> 0 | O91: 2 | AA91: 1 | AB91: 1 | AC91: 1 | AZ91: 1 | BA91: =IF(AZ91=1,G91,0) -> 0 | BB91: =IF(AZ91=2,G91,0) -> 0 | BC91: =IF(AZ91=3,G91,0) -> 0 | BD91: =IF(AZ91=4,G91,0) -> 0 | BE91: =IF(AZ91=5,G91,0) -> 0 | CA91: 1 | CB91: 1
B92: Celkem za | C92: 8 Trubní vedení | G92: =SUM(G90:G91) -> 0 | I92: =SUM(I90:I91) -> 0.86764 | K92: =SUM(K90:K91) -> 0 | O92: 4 | BA92: =SUM(BA90:BA91) -> 0 | BB92: =SUM(BB90:BB91) -> 0 | BC92: =SUM(BC90:BC91) -> 0 | BD92: =SUM(BD90:BD91) -> 0 | BE92: =SUM(BE90:BE91) -> 0
A93: Díl: | B93: 91 | C93: Doplňující práce na komunikaci | O93: 1
A94: 36 | B94: 916561111RT2 | C94: Osazení záhon.obrubníků do lože z C 12/15 s opěrou včetně obrubníku 1000/50/200 cm | D94: m | E94: 116 | G94: =E94*F94 -> 0 | H94: 0.12472 | I94: =E94*H94 -> 14.46752 | J94: 0 | K94: =E94*J94 -> 0 | O94: 2 | AA94: 1 | AB94: 1 | AC94: 1 | AZ94: 1 | BA94: =IF(AZ94=1,G94,0) -> 0 | BB94: =IF(AZ94=2,G94,0) -> 0 | BC94: =IF(AZ94=3,G94,0) -> 0 | BD94: =IF(AZ94=4,G94,0) -> 0 | BE94: =IF(AZ94=5,G94,0) -> 0 | CA94: 1 | CB94: 1
C95: Záhonový obrubník (chodník +60 mm):56,00 | E95: 56 | M95: Záhonový obrubník (chodník +60 mm):56,00
C96: Záhonový obrubník (zapuštěný):60,00 | E96: 60 | M96: Záhonový obrubník (zapuštěný):60,00
A97: 37 | B97: 917862111RT5 | C97: Osazení stojat. obrub.bet. s opěrou,lože z C 12/15 včetně obrubníku ABO 100/8/25 | D97: m | E97: 95 | G97: =E97*F97 -> 0 | H97: 0.22133 | I97: =E97*H97 -> 21.02635 | J97: 0 | K97: =E97*J97 -> 0 | O97: 2 | AA97: 1 | AB97: 1 | AC97: 1 | AZ97: 1 | BA97: =IF(AZ97=1,G97,0) -> 0 | BB97: =IF(AZ97=2,G97,0) -> 0 | BC97: =IF(AZ97=3,G97,0) -> 0 | BD97: =IF(AZ97=4,G97,0) -> 0 | BE97: =IF(AZ97=5,G97,0) -> 0 | CA97: 1 | CB97: 1
A98: 38 | B98: 917862114RT7 | C98: Osazení stojat. obrub.bet. s opěrou,lože z C 25/30 včetně obrubníku 1000/150/250 | D98: m | E98: 41 | G98: =E98*F98 -> 0 | H98: 0.26981 | I98: =E98*H98 -> 11.06221 | J98: 0 | K98: =E98*J98 -> 0 | O98: 2 | AA98: 1 | AB98: 1 | AC98: 1 | AZ98: 1 | BA98: =IF(AZ98=1,G98,0) -> 0 | BB98: =IF(AZ98=2,G98,0) -> 0 | BC98: =IF(AZ98=3,G98,0) -> 0 | BD98: =IF(AZ98=4,G98,0) -> 0 | BE98: =IF(AZ98=5,G98,0) -> 0 | CA98: 1 | CB98: 1
C99: Silniční obrubník:41,00 | E99: 41 | M99: Silniční obrubník:41,00
A100: 39 | B100: 917862114RU7 | C100: Osazení stojat. obrub.bet. s opěrou,lože z C 25/30 včetně obrubníku 1000/150/150 | D100: m | E100: 4.5 | G100: =E100*F100 -> 0 | H100: 0.26981 | I100: =E100*H100 -> 1.214145 | J100: 0 | K100: =E100*J100 -> 0 | O100: 2 | AA100: 1 | AB100: 1 | AC100: 1 | AZ100: 1 | BA100: =IF(AZ100=1,G100,0) -> 0 | BB100: =IF(AZ100=2,G100,0) -> 0 | BC100: =IF(AZ100=3,G100,0) -> 0 | BD100: =IF(AZ100=4,G100,0) -> 0 | BE100: =IF(AZ100=5,G100,0) -> 0 | CA100: 1 | CB100: 1
C101: Silniční obrubník:4,5 | E101: 4.5 | M101: Silniční obrubník:4,5
A102: 40 | B102: 917862114RV4 | C102: Osazení stojat. obrub.bet. s opěrou,lože z C 25/30 včetně obrubníku 1000/150/150-250 P/L | D102: m | E102: 6 | G102: =E102*F102 -> 0 | H102: 0.26981 | I102: =E102*H102 -> 1.61886 | J102: 0 | K102: =E102*J102 -> 0 | O102: 2 | AA102: 1 | AB102: 1 | AC102: 1 | AZ102: 1 | BA102: =IF(AZ102=1,G102,0) -> 0 | BB102: =IF(AZ102=2,G102,0) -> 0 | BC102: =IF(AZ102=3,G102,0) -> 0 | BD102: =IF(AZ102=4,G102,0) -> 0 | BE102: =IF(AZ102=5,G102,0) -> 0 | CA102: 1 | CB102: 1
C103: Silniční obrubník:6,00 | E103: 6 | M103: Silniční obrubník:6,00
A104: 41 | B104: 918101111R00 | C104: Lože pod obrubníky nebo obruby dlažeb z C 12/15 | D104: m3 | E104: 4.445 | G104: =E104*F104 -> 0 | H104: 2.525 | I104: =E104*H104 -> 11.223625 | J104: 0 | K104: =E104*J104 -> 0 | O104: 2 | AA104: 1 | AB104: 1 | AC104: 1 | AZ104: 1 | BA104: =IF(AZ104=1,G104,0) -> 0 | BB104: =IF(AZ104=2,G104,0) -> 0 | BC104: =IF(AZ104=3,G104,0) -> 0 | BD104: =IF(AZ104=4,G104,0) -> 0 | BE104: =IF(AZ104=5,G104,0) -> 0 | CA104: 1 | CB104: 1
C105: Záhonový obrubník (chodník +60 mm):56,00*0,25*0,10 | E105: 1.4 | M105: Záhonový obrubník (chodník +60 mm):56,00*0,25*0,10
C106: Záhonový obrubník (zapuštěný):60,00*0,25*0,10 | E106: 1.5 | M106: Záhonový obrubník (zapuštěný):60,00*0,25*0,10
C107: Silniční obrubník:(41,00+4,50+6,00)*0,30*0,10 | E107: 1.545 | M107: Silniční obrubník:(41,00+4,50+6,00)*0,30*0,10
A108: 42 | B108: 919731121R00 | C108: Zarovnání styčné plochy živičné tl. do 5 cm | D108: m | E108: 9.4 | G108: =E108*F108 -> 0 | H108: 0 | I108: =E108*H108 -> 0 | J108: 0 | K108: =E108*J108 -> 0 | O108: 2 | AA108: 1 | AB108: 1 | AC108: 1 | AZ108: 1 | BA108: =IF(AZ108=1,G108,0) -> 0 | BB108: =IF(AZ108=2,G108,0) -> 0 | BC108: =IF(AZ108=3,G108,0) -> 0 | BD108: =IF(AZ108=4,G108,0) -> 0 | BE108: =IF(AZ108=5,G108,0) -> 0 | CA108: 1 | CB108: 1
B109: Celkem za | C109: 91 Doplňující práce na komunikaci | G109: =SUM(G93:G108) -> 0 | I109: =SUM(I93:I108) -> 60.61271 | K109: =SUM(K93:K108) -> 0 | O109: 4 | BA109: =SUM(BA93:BA108) -> 0 | BB109: =SUM(BB93:BB108) -> 0 | BC109: =SUM(BC93:BC108) -> 0 | BD109: =SUM(BD93:BD108) -> 0 | BE109: =SUM(BE93:BE108) -> 0
A110: Díl: | B110: 99 | C110: Staveništní přesun hmot | O110: 1
A111: 43 | B111: 998225111R00 | C111: Přesun hmot, pozemní komunikace, kryt živičný | D111: t | E111: 515.08881 | G111: =E111*F111 -> 0 | H111: 0 | I111: =E111*H111 -> 0 | K111: =E111*J111 -> 0 | O111: 2 | AA111: 7 | AB111: 1 | AC111: 2 | AZ111: 1 | BA111: =IF(AZ111=1,G111,0) -> 0 | BB111: =IF(AZ111=2,G111,0) -> 0 | BC111: =IF(AZ111=3,G111,0) -> 0 | BD111: =IF(AZ111=4,G111,0) -> 0 | BE111: =IF(AZ111=5,G111,0) -> 0 | CA111: 7 | CB111: 1
B112: Celkem za | C112: 99 Staveništní přesun hmot | G112: =SUM(G110:G111) -> 0 | I112: =SUM(I110:I111) -> 0 | K112: =SUM(K110:K111) -> 0 | O112: 4 | BA112: =SUM(BA110:BA111) -> 0 | BB112: =SUM(BB110:BB111) -> 0 | BC112: =SUM(BC110:BC111) -> 0 | BD112: =SUM(BD110:BD111) -> 0 | BE112: =SUM(BE110:BE111) -> 0
